{"text_format":"1","workbook":"xlsx","n_sheets":3,"sheets":["Sheet1","Sheet3","Sheet4"],"not_rendered":{"charts":0,"images":0,"macros":1,"external_links":0,"defined_names":4,"comments":0,"pivot_tables":0},"unopened":[],"bounds":{"document_bytes":16777216,"sheet_cells":100000,"rows_first":2000,"rows_last":500,"rows_between":2000,"halvings":0,"cell_chars":16384,"cell_head_chars":4096},"cells_cut":0,"cells_raw":0,"read":"whole","date_system":"1900"}

{"sheet":"Sheet1","index":0,"n_rows":501,"n_cols":5,"rows_kept":501,"cut":false,"hidden":false,"merged":[]}
["PLAYER","POS","TEAM",null,"http://www.cbssports.com/nhl/stats/playersort/nhl/year-2014-season-regularseason-category-points"]
["John Tavares","C","NYI"]
["Nicklas Backstrom","C","WAS"]
["Alex Ovechkin","LW","WAS"]
["Evgeni Malkin","C","PIT"]
["Sidney Crosby","C","PIT"]
["Jakub Voracek","RW","PHI"]
["Tyler Johnson","C","TB"]
["Patrick Kane","RW","CHI"]
["Vladimir Tarasenko","RW","STL"]
["Jamie Benn","LW","DAL"]
["Ryan Getzlaf","C","ANA"]
["Claude Giroux","C","PHI"]
["Joe Pavelski","C","SJ"]
["Tyler Seguin","C","DAL"]
["Steven Stamkos","C","TB"]
["Rick Nash","LW","NYR"]
["Henrik Sedin","C","VAN"]
["Nick Foligno","LW","CLB"]
["Daniel Sedin","LW","VAN"]
["Max Pacioretty","LW","MON"]
["Joe Thornton","C","SJ"]
["Ryan Johansen","C","CLB"]
["Nikita Kucherov","RW","TB"]
["Logan Couture","C","SJ"]
["Jiri Hudler","LW","CGY"]
["Mike Ribeiro","C","NSH"]
["Alexander Steen","LW","STL"]
["Jonathan Toews","C","CHI"]
["Filip Forsberg","C","NSH"]
["Andrew Ladd","LW","WPG"]
["Jason Spezza","C","DAL"]
["Henrik Zetterberg","LW","DET"]
["Pavel Datsyuk","C","DET"]
["Ondrej Palat","LW","TB"]
["Phil Kessel","RW","TOR"]
["Bryan Little","C","WPG"]
["Derick Brassard","C","NYR"]
["Jeff Carter","C","LA"]
["Erik Karlsson","D","OTT"]
["Kris Letang","D","PIT"]
["Zach Parise","LW","MIN"]
["Jaden Schwartz","LW","STL"]
["Brent Burns","D","SJ"]
["Anze Kopitar","C","LA"]
["Bobby Ryan","RW","OTT"]
["P.K. Subban","D","MON"]
["Mark Giordano","D","CGY"]
["Marian Hossa","RW","CHI"]
["Patrick Marleau","C","SJ"]
["Radim Vrbata","RW","VAN"]
["Blake Wheeler","RW","WPG"]
["Ryan Callahan","RW","TB"]
["Johnny Gaudreau","LW","CGY"]
["Roman Josi","D","NSH"]
["Patrice Bergeron","C","BOS"]
["John Carlson","D","WAS"]
["Sean Monahan","C","CGY"]
["T.J. Oshie","RW","STL"]
["Corey Perry","RW","ANA"]
["Jason Pominville","RW","MIN"]
["Tomas Tatar","LW","DET"]
["James van Riemsdyk","LW","TOR"]
["Valtteri Filppula","C","TB"]
["Tomas Plekanec","C","MON"]
["Kyle Turris","C","OTT"]
["David Backes","C","STL"]
["Jordan Eberle","RW","EDM"]
["Jarome Iginla","RW","COL"]
["Gabriel Landeskog","LW","COL"]
["Gustav Nyquist","C","DET"]
["Kyle Okposo","RW","NYI"]
["Wayne Simmonds","RW","PHI"]
["Martin St. Louis","RW","NYR"]
["Tyson Barrie","D","COL"]
["Scott Hartnell","LW","CLB"]
["Brandon Saad","LW","CHI"]
["Derek Stepan","C","NYR"]
["Mark Streit","D","PHI"]
["Shea Weber","D","NSH"]
["Dustin Byfuglien","D","WPG"]
["Matt Duchene","C","COL"]
["Patric Hornqvist","RW","PIT"]
["Mark Stone","RW","OTT"]
["Ryan Strome","C","NYI"]
["Alex Tanguay","LW","COL"]
["David Desharnais","C","MON"]
["Mike Hoffman","LW","OTT"]
["Ryan Kesler","C","ANA"]
["Dennis Wideman","D","CGY"]
["Keith Yandle","D","NYR"]
["Nick Bjugstad","C","FLA"]
["Tyler Bozak","C","TOR"]
["Justin Faulk","D","CAR"]
["Alex Galchenyuk","C","MON"]
["Brendan Gallagher","RW","MON"]
["Andrei Markov","D","MON"]
["Kevin Shattenkirk","D","STL"]
["Tyler Toffoli","C","LA"]
["Colin Wilson","C","NSH"]
["Jonathan Huberdeau","C","FLA"]
["Chris Kunitz","LW","PIT"]
["Ryan Nugent-Hopkins","C","EDM"]
["Craig Smith","C","NSH"]
["Thomas Vanek","LW","MIN"]
["Drew Doughty","D","LA"]
["Mike Green","D","WAS"]
["Marcus Johansson","LW","WAS"]
["Mikko Koivu","C","MIN"]
["Nathan MacKinnon","C","COL"]
["Brock Nelson","C","NYI"]
["Frans Nielsen","C","NYI"]
["Ryan O'Reilly","C","COL"]
["Eric Staal","C","CAR"]
["Paul Stastny","C","STL"]
["Mats Zuccarello","RW","NYR"]
["Loui Eriksson","LW","BOS"]
["Dougie Hamilton","D","BOS"]
["Duncan Keith","D","CHI"]
["Niklas Kronwall","D","DET"]
["Brad Marchand","LW","BOS"]
["Mark Scheifele","C","WPG"]
["T.J. Brodie","D","CGY"]
["Marian Gaborik","RW","LA"]
["Jussi Jokinen","LW","FLA"]
["Nazem Kadri","C","TOR"]
["John Klingberg","D","DAL"]
["Anders Lee","C","NYI"]
["Jori Lehtera","C","STL"]
["Mathieu Perreault","C","WPG"]
["David Perron","LW","PIT"]
["Brayden Schenn","C","PHI"]
["Mika Zibanejad","C","OTT"]
["Erik Cole","RW","DET"]
["Mike Fisher","C","NSH"]
["Michael Frolik","RW","WPG"]
["Alex Killorn","C","TB"]
["Milan Lucic","LW","BOS"]
["Reilly Smith","RW","BOS"]
["Carl Soderberg","C","BOS"]
["Antoine Vermette","C","CHI"]
["Justin Abdelkader","LW","DET"]
["Josh Bailey","LW","NYI"]
["Troy Brouwer","RW","WAS"]
["Mike Cammalleri","LW","NJ"]
["Aaron Ekblad","D","FLA"]
["Tyler Ennis","LW","BUF"]
["Cody Franson","D","NSH"]
["Chris Kreider","LW","NYR"]
["James Neal","LW","NSH"]
["Alex Pietrangelo","D","STL"]
["Anton Stralman","D","TB"]
["Sami Vatanen","D","ANA"]
["Trevor Daley","D","DAL"]
["Victor Hedman","D","TB"]
["Adam Henrique","C","NJ"]
["Johnny Boychuk","D","NYI"]
["Brad Boyes","RW","FLA"]
["Oliver Ekman-Larsson","D","ARI"]
["Sam Gagner","C","ARI"]
["Curtis Glencross","LW","WAS"]
["Jaromir Jagr","RW","FLA"]
["Brad Richards","C","CHI"]
["Patrick Sharp","LW","CHI"]
["Torey Krug","D","BOS"]
["Jake Muzzin","D","LA"]
["Nino Niederreiter","RW","MIN"]
["Jakob Silfverberg","RW","ANA"]
["Ryan Suter","D","MIN"]
["Kris Versteeg","RW","CHI"]
["Matt Beleskey","LW","ANA"]
["Shane Doan","RW","ARI"]
["Cody Eakin","C","DAL"]
["Zemgus Girgensons","C","BUF"]
["Taylor Hall","LW","EDM"]
["Matt Moulson","LW","BUF"]
["Mike Santorelli","C","NSH"]
["Drew Stafford","RW","WPG"]
["Justin Williams","RW","LA"]
["Nick Bonino","C","VAN"]
["Sean Couturier","C","PHI"]
["Martin Erat","LW","ARI"]
["Eric Fehr","RW","WAS"]
["Mikael Granlund","C","MIN"]
["Carl Hagelin","LW","NYR"]
["Jimmy Hayes","RW","FLA"]
["Kevin Hayes","RW","NYR"]
["Darren Helm","C","DET"]
["Chris Higgins","LW","VAN"]
["Jack Johnson","D","CLB"]
["Nick Leddy","D","NYI"]
["Hampus Lindholm","D","ANA"]
["Brent Seabrook","D","CHI"]
["Riley Sheahan","C","DET"]
["Tommy Wingels","C","SJ"]
["James Wisniewski","D","ANA"]
["Mikkel Boedker","LW","ARI"]
["Blake Comeau","LW","PIT"]
["Cam Fowler","D","ANA"]
["Alex Goligoski","D","DAL"]
["Jannik Hansen","RW","VAN"]
["Patrick Maroon","LW","ANA"]
["Milan Michalek","LW","OTT"]
["Teddy Purcell","RW","EDM"]
["Joel Ward","RW","WAS"]
["Charlie Coyle","C","MIN"]
["Patrik Elias","LW","NJ"]
["Jason Garrison","D","TB"]
["Chris Kelly","C","BOS"]
["Elias Lindholm","C","CAR"]
["Jeff Skinner","LW","CAR"]
["Lance Bouma","LW","CGY"]
["Michael Del Zotto","D","PHI"]
["Jonathan Drouin","LW","TB"]
["Ales Hemsky","RW","DAL"]
["Kevin Klein","D","NYR"]
["David Krejci","C","BOS"]
["Clarke MacArthur","LW","OTT"]
["Rickard Rakell","C","ANA"]
["Matt Read","RW","PHI"]
["Chris Stewart","RW","MIN"]
["Daniel Winnik","RW","PIT"]
["Cam Atkinson","RW","CLB"]
["Dustin Brown","RW","LA"]
["Alex Burrows","LW","VAN"]
["Travis Hamonic","D","NYI"]
["Tomas Hertl","C","SJ"]
["Evgeny Kuznetsov","C","WAS"]
["Dion Phaneuf","D","TOR"]
["David Savard","D","CLB"]
["Brandon Sutter","C","PIT"]
["Dale Weise","RW","MON"]
["Bryan Bickell","LW","CHI"]
["Joe Colborne","C","CGY"]
["Steve Downie","RW","PIT"]
["Brandon Dubinsky","C","CLB"]
["Scott Gomez","C","NJ"]
["Martin Hanzal","C","ARI"]
["Nikolay Kulemin","LW","NYI"]
["Shawn Matthias","C","VAN"]
["Kyle Palmieri","RW","ANA"]
["Antoine Roussel","LW","DAL"]
["Derek Roy","C","EDM"]
["Justin Schultz","D","EDM"]
["Jiri Tlusty","LW","WPG"]
["Marek Zidlicky","D","DET"]
["Aleksander Barkov","C","FLA"]
["Brian Campbell","D","FLA"]
["Andrew Cogliano","C","ANA"]
["Danny DeKeyser","D","DET"]
["Vernon Fiddler","C","DAL"]
["Tomas Fleischmann","LW","ANA"]
["Nathan Gerbe","LW","CAR"]
["Shawn Horcoff","C","DAL"]
["Erik Johnson","D","COL"]
["David Jones","RW","CGY"]
["Ryan McDonagh","D","NYR"]
["Riley Nash","C","CAR"]
["Morgan Rielly","D","TOR"]
["Kris Russell","D","CGY"]
["Jason Zucker","LW","MIN"]
["Justin Fontaine","RW","MIN"]
["Johan Franzen","LW","DET"]
["Peter Holland","C","TOR"]
["Seth Jones","D","NSH"]
["Evander Kane","LW","BUF"]
["David Legwand","C","OTT"]
["Nick Spaling","C","PIT"]
["Linden Vey","RW","VAN"]
["Nail Yakupov","RW","EDM"]
["Mark Arcobello","C","ARI"]
["Brian Boyle","C","TB"]
["Andre Burakovsky","LW","WAS"]
["Alex Chiasson","RW","OTT"]
["Ryan Garbutt","LW","DAL"]
["Thomas Hickey","D","NYI"]
["Dwight King","LW","LA"]
["Leo Komarov","C","TOR"]
["Tyler Myers","D","WPG"]
["Matt Niskanen","D","WAS"]
["Colton Sceviour","C","DAL"]
["Marc-Edouard Vlasic","D","SJ"]
["Mikael Backlund","C","CGY"]
["Jay Beagle","C","WAS"]
["Patrik Berglund","C","STL"]
["Justin Braun","D","SJ"]
["Matt Cullen","C","NSH"]
["Jason Demers","D","DAL"]
["Ryan Ellis","D","NSH"]
["Josh Jooris","C","CGY"]
["Matt Nieto","LW","SJ"]
["Benoit Pouliot","LW","EDM"]
["Michael Raffl","LW","PHI"]
["Victor Rask","C","CAR"]
["Marco Scandella","D","MIN"]
["Travis Zajac","C","NJ"]
["Steve Bernier","RW","NJ"]
["Matt Calvert","LW","CLB"]
["Tobias Enstrom","D","WPG"]
["Brian Gionta","RW","BUF"]
["Mikhail Grabovski","C","NYI"]
["Bo Horvat","C","VAN"]
["Lauri Korpikoski","LW","ARI"]
["Adam Larsson","D","NJ"]
["Trevor Lewis","C","LA"]
["Joffrey Lupul","RW","TOR"]
["Jay McClement","C","CAR"]
["Brayden McNabb","D","LA"]
["John Mitchell","C","COL"]
["Dominic Moore","C","NYR"]
["Cedric Paquette","C","TB"]
["Brad Richardson","C","VAN"]
["Jiri Sekac","LW","ANA"]
["Andrej Sekera","D","LA"]
["Lee Stempniak","RW","WPG"]
["Jacob Trouba","D","WPG"]
["Stephen Weiss","C","DET"]
["Karl Alzner","D","WAS"]
["Francois Beauchemin","D","ANA"]
["Sean Bergenheim","LW","MIN"]
["Kyle Brodziak","C","MIN"]
["Paul Byron","C","CGY"]
["Cody Ceci","D","OTT"]
["Zdeno Chara","D","BOS"]
["Simon Despres","D","ANA"]
["Derek Dorsett","RW","VAN"]
["Lars Eller","C","MON"]
["Dan Girardi","D","NYR"]
["Melker Karlsson","RW","SJ"]
["Dmitry Kulikov","D","FLA"]
["Michael Ryder","RW","NJ"]
["Devante Smith-Pelly","RW","MON"]
["Jared Spurgeon","D","MIN"]
["Zach Bogosian","D","BUF"]
["Kevin Connauton","D","CLB"]
["Alexander Edler","D","VAN"]
["Brian Flynn","RW","MON"]
["Jake Gardiner","D","TOR"]
["Vincent Lecavalier","C","PHI"]
["Adam Lowry","LW","WPG"]
["Paul Martin","D","PIT"]
["Alec Martinez","D","LA"]
["Mason Raymond","LW","CGY"]
["Andrew Shaw","C","CHI"]
["Marc Staal","D","NYR"]
["Vincent Trocheck","C","FLA"]
["Dave Bolland","C","FLA"]
["Jason Chimera","LW","WAS"]
["Erik Condra","RW","OTT"]
["Andy Greene","D","NJ"]
["Dan Hamhuis","D","VAN"]
["Brooks Orpik","D","WAS"]
["Tanner Pearson","LW","LA"]
["Tobias Rieder","C","ARI"]
["James Sheppard","LW","NYR"]
["Jordan Staal","C","CAR"]
["Michael Stone","D","ARI"]
["Maxime Talbot","C","BOS"]
["Dan Boyle","D","NYR"]
["David Clarkson","RW","CLB"]
["Brett Connolly","RW","BOS"]
["Mattias Ekholm","D","NSH"]
["Matt Irwin","D","SJ"]
["Calle Jarnkrok","C","NSH"]
["Dmitrij Jaskin","RW","STL"]
["Tomas Jurco","RW","DET"]
["Zack Kassian","RW","VAN"]
["Brooks Laich","C","WAS"]
["Andrej Nestrasil","RW","CAR"]
["P.A. Parenteau","RW","MON"]
["David Pastrnak","RW","BOS"]
["Jeff Petry","D","MON"]
["Brandon Pirri","C","FLA"]
["Mike Richards","C","LA"]
["Alexander Semin","RW","CAR"]
["Jarret Stoll","C","LA"]
["Chris Tanev","D","VAN"]
["R.J. Umberger","LW","PHI"]
["Chris Vande Velde","C","PHI"]
["Tom Wilson","RW","WAS"]
["Artem Anisimov","C","CLB"]
["Jordie Benn","D","DAL"]
["Matt Carle","D","TB"]
["Casey Cizikas","C","NYI"]
["Cal Clutterbuck","RW","NYI"]
["Nicolas Deslauriers","LW","BUF"]
["Patrick Eaves","RW","DAL"]
["Jonathan Ericsson","D","DET"]
["Marcus Foligno","LW","BUF"]
["Eric Gelinas","D","NJ"]
["Martin Havlat","RW","NJ"]
["Nick Holden","D","COL"]
["Marcus Kruger","C","CHI"]
["John-Michael Liles","D","CAR"]
["Matt Martin","LW","NYI"]
["J.T. Miller","C","NYR"]
["Richard Panik","RW","TOR"]
["Brandon Prust","RW","MON"]
["Nick Schultz","D","PHI"]
["Nate Thompson","C","ANA"]
["Scottie Upshall","RW","FLA"]
["Lubomir Visnovsky","D","NYI"]
["Yannick Weber","D","VAN"]
["Nikita Zadorov","D","BUF"]
["Ryan Carter","C","MIN"]
["Christian Ehrhoff","D","PIT"]
["Alexei Emelin","D","MON"]
["Sergei Gonchar","D","MON"]
["Markus Granlund","C","CGY"]
["Nate Guenin","D","COL"]
["Matt Hendricks","C","EDM"]
["Niklas Hjalmarsson","D","CHI"]
["Barret Jackman","D","STL"]
["Jon Merrill","D","NJ"]
["Torrey Mitchell","C","MON"]
["Kyle Quincey","D","DET"]
["Zach Redmond","D","COL"]
["David Rundblad","D","CHI"]
["Jonas Brodin","D","MIN"]
["Luke Glendening","RW","DET"]
["Michael Grabner","RW","NYI"]
["Carl Gunnarsson","D","STL"]
["Erik Haula","LW","MIN"]
["Boone Jenner","C","CLB"]
["Oscar Klefbom","D","EDM"]
["Brad Malone","C","CAR"]
["Eric Nystrom","LW","NSH"]
["Tuomo Ruutu","LW","NJ"]
["Luke Schenn","D","PHI"]
["Damon Severson","D","NJ"]
["Mark Stuart","D","WPG"]
["Fedor Tyutin","D","CLB"]
["Calvin de Haan","D","NYI"]
["Taylor Beck","LW","NSH"]
["Daniel Briere","C","COL"]
["Kyle Chipchura","C","ARI"]
["Kyle Clifford","LW","LA"]
["Pascal Dupuis","RW","PIT"]
["Andrew Ference","D","EDM"]
["Paul Gaustad","C","NSH"]
["Barclay Goodrow","LW","SJ"]
["Boyd Gordon","C","EDM"]
["Erik Gudbranson","D","FLA"]
["Cody Hodgson","C","BUF"]
["Jakub Kindl","D","DET"]
["Anton Lander","C","EDM"]
["Ben Lovejoy","D","PIT"]
["Andrew MacDonald","D","PHI"]
["Drew Miller","LW","DET"]
["Rasmus Ristolainen","D","BUF"]
["Dennis Seidenberg","D","BOS"]
["Brendan Smith","D","DET"]
["Ben Smith","RW","SJ"]
["Matt Stajan","C","CGY"]
["Ryan Stanton","D","VAN"]
["Chris Terry","LW","CAR"]
["Chris Thorburn","RW","WPG"]
["Jordin Tootoo","RW","NJ"]
["Alexander Wennberg","C","CLB"]
["Victor Bartley","D","NSH"]
["Beau Bennett","RW","PIT"]
["Rene Bourque","LW","CLB"]
["Jay Bouwmeester","D","STL"]
["Braydon Coburn","D","TB"]
["Ian Cole","D","PIT"]
["Brenden Dillon","D","SJ"]
["Matt Dumba","D","MIN"]
["Patrick Dwyer","RW","CAR"]
["Matt Fraser","LW","EDM"]
["Tom Gilbert","D","MON"]
["Seth Griffith","C","BOS"]
["Jan Hejda","D","COL"]
["Ronalds Kenins","LW","VAN"]
["Maxim Lapierre","C","PIT"]
["Steve Ott","C","STL"]
["Daniel Paille","LW","BOS"]
["Ryan Reaves","RW","STL"]
["Michal Rozsival","D","CHI"]
["Brad Stuart","D","COL"]
["Andrej Sustr","D","TB"]
["Pierre-Edouard Bellemare","RW","PHI"]
["Kevin Bieksa","D","VAN"]
["Gabriel Bourque","LW","NSH"]
["Gregory Campbell","C","BOS"]
["Jared Cowen","D","OTT"]
["Leon Draisaitl","C","EDM"]
["Emerson Etem","RW","ANA"]
["Jesper Fast","RW","NYR"]
["Christian Folin","D","MIN"]
["Stephen Gionta","RW","NJ"]
["Matt Greene","D","LA"]
["Nicklas Grossmann","D","PHI"]
["Eric Gryba","D","OTT"]
["Jyrki Jokipakka","D","DAL"]
["Tyler Kennedy","C","NYI"]
["Curtis Lazar","RW","OTT"]
["Mark Letestu","C","CLB"]
["Olli Maatta","D","PIT"]
["Derek MacKenzie","C","FLA"]
["Jamie McBain","D","LA"]
["Cody McLeod","LW","COL"]

{"sheet":"Sheet3","index":1,"n_rows":501,"n_cols":8,"rows_kept":501,"cut":false,"hidden":false,"merged":[]}
["Team","Team Link","PLAYER","Player Link","Pos"]
["FLA","http://www.cbssports.com/nhl/teams/page/FLA","Aaron Ekblad","http://www.cbssports.com/nhl/players/player/gamelogs/2014/2147283","D",null,"Tyler Johnson",{"$f":"VLOOKUP(G2,C:D,2,FALSE)","v":"http://www.cbssports.com/nhl/players/player/gamelogs/2014/1903257"}]
["NJ","http://www.cbssports.com/nhl/teams/page/NJ","Adam Henrique","http://www.cbssports.com/nhl/players/player/gamelogs/2014/1639405","C"]
["NJ","http://www.cbssports.com/nhl/teams/page/NJ","Adam Larsson","http://www.cbssports.com/nhl/players/player/gamelogs/2014/1892909","D"]
["WPG","http://www.cbssports.com/nhl/teams/page/WPG","Adam Lowry","http://www.cbssports.com/nhl/players/player/gamelogs/2014/1897713","LW"]
["LA","http://www.cbssports.com/nhl/teams/page/LA","Alec Martinez","http://www.cbssports.com/nhl/players/player/gamelogs/2014/1639440","D"]
["FLA","http://www.cbssports.com/nhl/teams/page/FLA","Aleksander Barkov","http://www.cbssports.com/nhl/players/player/gamelogs/2014/2076014","C"]
["DAL","http://www.cbssports.com/nhl/teams/page/DAL","Ales Hemsky","http://www.cbssports.com/nhl/players/player/gamelogs/2014/273213","RW"]
["VAN","http://www.cbssports.com/nhl/teams/page/VAN","Alex Burrows","http://www.cbssports.com/nhl/players/player/gamelogs/2014/371763","LW"]
["OTT","http://www.cbssports.com/nhl/teams/page/OTT","Alex Chiasson","http://www.cbssports.com/nhl/players/player/gamelogs/2014/2050261","RW"]
["MON","http://www.cbssports.com/nhl/teams/page/MON","Alex Galchenyuk","http://www.cbssports.com/nhl/players/player/gamelogs/2014/2000657","C"]
["DAL","http://www.cbssports.com/nhl/teams/page/DAL","Alex Goligoski","http://www.cbssports.com/nhl/players/player/gamelogs/2014/1282429","D"]
["TB","http://www.cbssports.com/nhl/teams/page/TB","Alex Killorn","http://www.cbssports.com/nhl/players/player/gamelogs/2014/2042076","C"]
["WAS","http://www.cbssports.com/nhl/teams/page/WAS","Alex Ovechkin","http://www.cbssports.com/nhl/players/player/gamelogs/2014/559829","LW"]
["STL","http://www.cbssports.com/nhl/teams/page/STL","Alex Pietrangelo","http://www.cbssports.com/nhl/players/player/gamelogs/2014/1639463","D"]
["COL","http://www.cbssports.com/nhl/teams/page/COL","Alex Tanguay","http://www.cbssports.com/nhl/players/player/gamelogs/2014/20534","LW"]
["VAN","http://www.cbssports.com/nhl/teams/page/VAN","Alexander Edler","http://www.cbssports.com/nhl/players/player/gamelogs/2014/566008","D"]
["CAR","http://www.cbssports.com/nhl/teams/page/CAR","Alexander Semin","http://www.cbssports.com/nhl/players/player/gamelogs/2014/435269","RW"]
["STL","http://www.cbssports.com/nhl/teams/page/STL","Alexander Steen","http://www.cbssports.com/nhl/players/player/gamelogs/2014/367818","LW"]
["MON","http://www.cbssports.com/nhl/teams/page/MON","Alexei Emelin","http://www.cbssports.com/nhl/players/player/gamelogs/2014/1892908","D"]
["NYI","http://www.cbssports.com/nhl/teams/page/NYI","Anders Lee","http://www.cbssports.com/nhl/players/player/gamelogs/2014/2053408","C"]
["WAS","http://www.cbssports.com/nhl/teams/page/WAS","Andre Burakovsky","http://www.cbssports.com/nhl/players/player/gamelogs/2014/2076015","LW"]
["MON","http://www.cbssports.com/nhl/teams/page/MON","Andrei Markov","http://www.cbssports.com/nhl/players/player/gamelogs/2014/204657","D"]
["CAR","http://www.cbssports.com/nhl/teams/page/CAR","Andrej Sekera","http://www.cbssports.com/nhl/players/player/gamelogs/2014/565421","D"]
["ANA","http://www.cbssports.com/nhl/teams/page/ANA","Andrew Cogliano","http://www.cbssports.com/nhl/players/player/gamelogs/2014/1284625","C"]
["EDM","http://www.cbssports.com/nhl/teams/page/EDM","Andrew Ference","http://www.cbssports.com/nhl/players/player/gamelogs/2014/19673","D"]
["WPG","http://www.cbssports.com/nhl/teams/page/WPG","Andrew Ladd","http://www.cbssports.com/nhl/players/player/gamelogs/2014/565239","LW"]
["PHI","http://www.cbssports.com/nhl/teams/page/PHI","Andrew MacDonald","http://www.cbssports.com/nhl/players/player/gamelogs/2014/1133601","D"]
["CHI","http://www.cbssports.com/nhl/teams/page/CHI","Andrew Shaw","http://www.cbssports.com/nhl/players/player/gamelogs/2014/1899139","C"]
["NJ","http://www.cbssports.com/nhl/teams/page/NJ","Andy Greene","http://www.cbssports.com/nhl/players/player/gamelogs/2014/1137448","D"]
["NYR","http://www.cbssports.com/nhl/teams/page/NYR","Anthony Duclair","http://www.cbssports.com/nhl/players/player/gamelogs/2014/2094560","LW"]
["DAL","http://www.cbssports.com/nhl/teams/page/DAL","Antoine Roussel","http://www.cbssports.com/nhl/players/player/gamelogs/2014/1899135","LW"]
["ARI","http://www.cbssports.com/nhl/teams/page/ARI","Antoine Vermette","http://www.cbssports.com/nhl/players/player/gamelogs/2014/274304","C"]
["EDM","http://www.cbssports.com/nhl/teams/page/EDM","Anton Lander","http://www.cbssports.com/nhl/players/player/gamelogs/2014/1707424","C"]
["TB","http://www.cbssports.com/nhl/teams/page/TB","Anton Stralman","http://www.cbssports.com/nhl/players/player/gamelogs/2014/1286087","D"]
["LA","http://www.cbssports.com/nhl/teams/page/LA","Anze Kopitar","http://www.cbssports.com/nhl/players/player/gamelogs/2014/565682","C"]
["CLB","http://www.cbssports.com/nhl/teams/page/CLB","Artem Anisimov","http://www.cbssports.com/nhl/players/player/gamelogs/2014/1286409","C"]
["SJ","http://www.cbssports.com/nhl/teams/page/SJ","Barclay Goodrow","http://www.cbssports.com/nhl/players/player/gamelogs/2014/2147156","LW"]
["STL","http://www.cbssports.com/nhl/teams/page/STL","Barret Jackman","http://www.cbssports.com/nhl/players/player/gamelogs/2014/151095","D"]
["PIT","http://www.cbssports.com/nhl/teams/page/PIT","Beau Bennett","http://www.cbssports.com/nhl/players/player/gamelogs/2014/2038300","RW"]
["ANA","http://www.cbssports.com/nhl/teams/page/ANA","Ben Lovejoy","http://www.cbssports.com/nhl/players/player/gamelogs/2014/1639520","D"]
["CHI","http://www.cbssports.com/nhl/teams/page/CHI","Ben Smith","http://www.cbssports.com/nhl/players/player/gamelogs/2014/1770991","RW"]
["EDM","http://www.cbssports.com/nhl/teams/page/EDM","Benoit Pouliot","http://www.cbssports.com/nhl/players/player/gamelogs/2014/566127","LW"]
["PIT","http://www.cbssports.com/nhl/teams/page/PIT","Blake Comeau","http://www.cbssports.com/nhl/players/player/gamelogs/2014/565815","LW"]
["WPG","http://www.cbssports.com/nhl/teams/page/WPG","Blake Wheeler","http://www.cbssports.com/nhl/players/player/gamelogs/2014/1622609","RW"]
["VAN","http://www.cbssports.com/nhl/teams/page/VAN","Bo Horvat","http://www.cbssports.com/nhl/players/player/gamelogs/2014/2076022","C"]
["OTT","http://www.cbssports.com/nhl/teams/page/OTT","Bobby Ryan","http://www.cbssports.com/nhl/players/player/gamelogs/2014/565257","RW"]
["CLB","http://www.cbssports.com/nhl/teams/page/CLB","Boone Jenner","http://www.cbssports.com/nhl/players/player/gamelogs/2014/1897689","C"]
["EDM","http://www.cbssports.com/nhl/teams/page/EDM","Boyd Gordon","http://www.cbssports.com/nhl/players/player/gamelogs/2014/368528","C"]
["FLA","http://www.cbssports.com/nhl/teams/page/FLA","Brad Boyes","http://www.cbssports.com/nhl/players/player/gamelogs/2014/204462","RW"]
["CAR","http://www.cbssports.com/nhl/teams/page/CAR","Brad Malone","http://www.cbssports.com/nhl/players/player/gamelogs/2014/1897718","C"]
["BOS","http://www.cbssports.com/nhl/teams/page/BOS","Brad Marchand","http://www.cbssports.com/nhl/players/player/gamelogs/2014/1133425","LW"]
["CHI","http://www.cbssports.com/nhl/teams/page/CHI","Brad Richards","http://www.cbssports.com/nhl/players/player/gamelogs/2014/20508","C"]
["VAN","http://www.cbssports.com/nhl/teams/page/VAN","Brad Richardson","http://www.cbssports.com/nhl/players/player/gamelogs/2014/433607","C"]
["CLB","http://www.cbssports.com/nhl/teams/page/CLB","Brandon Dubinsky","http://www.cbssports.com/nhl/players/player/gamelogs/2014/566104","C"]
["FLA","http://www.cbssports.com/nhl/teams/page/FLA","Brandon Pirri","http://www.cbssports.com/nhl/players/player/gamelogs/2014/1770972","C"]
["MON","http://www.cbssports.com/nhl/teams/page/MON","Brandon Prust","http://www.cbssports.com/nhl/players/player/gamelogs/2014/565255","RW"]
["CHI","http://www.cbssports.com/nhl/teams/page/CHI","Brandon Saad","http://www.cbssports.com/nhl/players/player/gamelogs/2014/1899136","LW"]
["PIT","http://www.cbssports.com/nhl/teams/page/PIT","Brandon Sutter","http://www.cbssports.com/nhl/players/player/gamelogs/2014/1280611","C"]
["LA","http://www.cbssports.com/nhl/teams/page/LA","Brayden McNabb","http://www.cbssports.com/nhl/players/player/gamelogs/2014/1707431","D"]
["PHI","http://www.cbssports.com/nhl/teams/page/PHI","Brayden Schenn","http://www.cbssports.com/nhl/players/player/gamelogs/2014/1707454","C"]
["MON","http://www.cbssports.com/nhl/teams/page/MON","Brendan Gallagher","http://www.cbssports.com/nhl/players/player/gamelogs/2014/1771071","RW"]
["DET","http://www.cbssports.com/nhl/teams/page/DET","Brendan Smith","http://www.cbssports.com/nhl/players/player/gamelogs/2014/1770992","D"]
["SJ","http://www.cbssports.com/nhl/teams/page/SJ","Brenden Dillon","http://www.cbssports.com/nhl/players/player/gamelogs/2014/1897644","D"]
["SJ","http://www.cbssports.com/nhl/teams/page/SJ","Brent Burns","http://www.cbssports.com/nhl/players/player/gamelogs/2014/433206","D"]
["CHI","http://www.cbssports.com/nhl/teams/page/CHI","Brent Seabrook","http://www.cbssports.com/nhl/players/player/gamelogs/2014/435267","D"]
["TB","http://www.cbssports.com/nhl/teams/page/TB","Brett Connolly","http://www.cbssports.com/nhl/players/player/gamelogs/2014/1770891","RW"]
["TB","http://www.cbssports.com/nhl/teams/page/TB","Brian Boyle","http://www.cbssports.com/nhl/players/player/gamelogs/2014/1282214","C"]
["FLA","http://www.cbssports.com/nhl/teams/page/FLA","Brian Campbell","http://www.cbssports.com/nhl/players/player/gamelogs/2014/19784","D"]
["BUF","http://www.cbssports.com/nhl/teams/page/BUF","Brian Flynn","http://www.cbssports.com/nhl/players/player/gamelogs/2014/2044867","RW"]
["BUF","http://www.cbssports.com/nhl/teams/page/BUF","Brian Gionta","http://www.cbssports.com/nhl/players/player/gamelogs/2014/274253","RW"]
["NYI","http://www.cbssports.com/nhl/teams/page/NYI","Brock Nelson","http://www.cbssports.com/nhl/players/player/gamelogs/2014/2059787","C"]
["WAS","http://www.cbssports.com/nhl/teams/page/WAS","Brooks Laich","http://www.cbssports.com/nhl/players/player/gamelogs/2014/368994","C"]
["WAS","http://www.cbssports.com/nhl/teams/page/WAS","Brooks Orpik","http://www.cbssports.com/nhl/players/player/gamelogs/2014/273550","D"]
["CHI","http://www.cbssports.com/nhl/teams/page/CHI","Bryan Bickell","http://www.cbssports.com/nhl/players/player/gamelogs/2014/565358","LW"]
["WPG","http://www.cbssports.com/nhl/teams/page/WPG","Bryan Little","http://www.cbssports.com/nhl/players/player/gamelogs/2014/1133423","C"]
["NYI","http://www.cbssports.com/nhl/teams/page/NYI","Cal Clutterbuck","http://www.cbssports.com/nhl/players/player/gamelogs/2014/1133466","RW"]
["NSH","http://www.cbssports.com/nhl/teams/page/NSH","Calle Jarnkrok","http://www.cbssports.com/nhl/players/player/gamelogs/2014/2094584","C"]
["NYI","http://www.cbssports.com/nhl/teams/page/NYI","Calvin de Haan","http://www.cbssports.com/nhl/players/player/gamelogs/2014/1707471","D"]
["CLB","http://www.cbssports.com/nhl/teams/page/CLB","Cam Atkinson","http://www.cbssports.com/nhl/players/player/gamelogs/2014/1897597","RW"]
["ANA","http://www.cbssports.com/nhl/teams/page/ANA","Cam Fowler","http://www.cbssports.com/nhl/players/player/gamelogs/2014/1770908","D"]
["STL","http://www.cbssports.com/nhl/teams/page/STL","Carl Gunnarsson","http://www.cbssports.com/nhl/players/player/gamelogs/2014/1707412","D"]
["NYR","http://www.cbssports.com/nhl/teams/page/NYR","Carl Hagelin","http://www.cbssports.com/nhl/players/player/gamelogs/2014/1897673","LW"]
["BOS","http://www.cbssports.com/nhl/teams/page/BOS","Carl Soderberg","http://www.cbssports.com/nhl/players/player/gamelogs/2014/1134156","C"]
["NYI","http://www.cbssports.com/nhl/teams/page/NYI","Casey Cizikas","http://www.cbssports.com/nhl/players/player/gamelogs/2014/1707391","C"]
["TB","http://www.cbssports.com/nhl/teams/page/TB","Cedric Paquette","http://www.cbssports.com/nhl/players/player/gamelogs/2014/2094056","C"]
["MIN","http://www.cbssports.com/nhl/teams/page/MIN","Charlie Coyle","http://www.cbssports.com/nhl/players/player/gamelogs/2014/2041394","C"]
["VAN","http://www.cbssports.com/nhl/teams/page/VAN","Chris Higgins","http://www.cbssports.com/nhl/players/player/gamelogs/2014/433661","LW"]
["BOS","http://www.cbssports.com/nhl/teams/page/BOS","Chris Kelly","http://www.cbssports.com/nhl/players/player/gamelogs/2014/151109","C"]
["NYR","http://www.cbssports.com/nhl/teams/page/NYR","Chris Kreider","http://www.cbssports.com/nhl/players/player/gamelogs/2014/1966327","LW"]
["PIT","http://www.cbssports.com/nhl/teams/page/PIT","Chris Kunitz","http://www.cbssports.com/nhl/players/player/gamelogs/2014/435197","LW"]
["BUF","http://www.cbssports.com/nhl/teams/page/BUF","Chris Stewart","http://www.cbssports.com/nhl/players/player/gamelogs/2014/1133489","RW"]
["VAN","http://www.cbssports.com/nhl/teams/page/VAN","Chris Tanev","http://www.cbssports.com/nhl/players/player/gamelogs/2014/1771089","D"]
["CAR","http://www.cbssports.com/nhl/teams/page/CAR","Chris Terry","http://www.cbssports.com/nhl/players/player/gamelogs/2014/1280613","LW"]
["PHI","http://www.cbssports.com/nhl/teams/page/PHI","Chris Vande Velde","http://www.cbssports.com/nhl/players/player/gamelogs/2014/1771009","C"]
["PIT","http://www.cbssports.com/nhl/teams/page/PIT","Christian Ehrhoff","http://www.cbssports.com/nhl/players/player/gamelogs/2014/273522","D"]
["OTT","http://www.cbssports.com/nhl/teams/page/OTT","Clarke MacArthur","http://www.cbssports.com/nhl/players/player/gamelogs/2014/434880","LW"]
["PHI","http://www.cbssports.com/nhl/teams/page/PHI","Claude Giroux","http://www.cbssports.com/nhl/players/player/gamelogs/2014/1282469","C"]
["OTT","http://www.cbssports.com/nhl/teams/page/OTT","Cody Ceci","http://www.cbssports.com/nhl/players/player/gamelogs/2014/2000653","D"]
["DAL","http://www.cbssports.com/nhl/teams/page/DAL","Cody Eakin","http://www.cbssports.com/nhl/players/player/gamelogs/2014/1707514","C"]
["TOR","http://www.cbssports.com/nhl/teams/page/TOR","Cody Franson","http://www.cbssports.com/nhl/players/player/gamelogs/2014/565818","D"]
["BUF","http://www.cbssports.com/nhl/teams/page/BUF","Cody Hodgson","http://www.cbssports.com/nhl/players/player/gamelogs/2014/1639406","C"]
["COL","http://www.cbssports.com/nhl/teams/page/COL","Cody McLeod","http://www.cbssports.com/nhl/players/player/gamelogs/2014/1137195","LW"]
["NSH","http://www.cbssports.com/nhl/teams/page/NSH","Colin Wilson","http://www.cbssports.com/nhl/players/player/gamelogs/2014/1689412","C"]
["DAL","http://www.cbssports.com/nhl/teams/page/DAL","Colton Sceviour","http://www.cbssports.com/nhl/players/player/gamelogs/2014/1639479","C"]
["ANA","http://www.cbssports.com/nhl/teams/page/ANA","Corey Perry","http://www.cbssports.com/nhl/players/player/gamelogs/2014/433603","RW"]
["NSH","http://www.cbssports.com/nhl/teams/page/NSH","Craig Smith","http://www.cbssports.com/nhl/players/player/gamelogs/2014/1897791","C"]
["CGY","http://www.cbssports.com/nhl/teams/page/CGY","Curtis Glencross","http://www.cbssports.com/nhl/players/player/gamelogs/2014/566655","LW"]
["OTT","http://www.cbssports.com/nhl/teams/page/OTT","Curtis Lazar","http://www.cbssports.com/nhl/players/player/gamelogs/2014/2076025","RW"]
["MON","http://www.cbssports.com/nhl/teams/page/MON","Dale Weise","http://www.cbssports.com/nhl/players/player/gamelogs/2014/1639496","RW"]
["NJ","http://www.cbssports.com/nhl/teams/page/NJ","Damien Brunner","http://www.cbssports.com/nhl/players/player/gamelogs/2014/2010320","RW"]
["NJ","http://www.cbssports.com/nhl/teams/page/NJ","Damon Severson","http://www.cbssports.com/nhl/players/player/gamelogs/2014/2093865","D"]
["NYR","http://www.cbssports.com/nhl/teams/page/NYR","Dan Boyle","http://www.cbssports.com/nhl/players/player/gamelogs/2014/125842","D"]
["NYR","http://www.cbssports.com/nhl/teams/page/NYR","Dan Girardi","http://www.cbssports.com/nhl/players/player/gamelogs/2014/1137447","D"]
["VAN","http://www.cbssports.com/nhl/teams/page/VAN","Dan Hamhuis","http://www.cbssports.com/nhl/players/player/gamelogs/2014/273310","D"]
["COL","http://www.cbssports.com/nhl/teams/page/COL","Daniel Briere","http://www.cbssports.com/nhl/players/player/gamelogs/2014/19766","C"]
["CHI","http://www.cbssports.com/nhl/teams/page/CHI","Daniel Carcillo","http://www.cbssports.com/nhl/players/player/gamelogs/2014/433207","LW"]
["BOS","http://www.cbssports.com/nhl/teams/page/BOS","Daniel Paille","http://www.cbssports.com/nhl/players/player/gamelogs/2014/367951","LW"]
["VAN","http://www.cbssports.com/nhl/teams/page/VAN","Daniel Sedin","http://www.cbssports.com/nhl/players/player/gamelogs/2014/151203","LW"]
["TOR","http://www.cbssports.com/nhl/teams/page/TOR","Daniel Winnik","http://www.cbssports.com/nhl/players/player/gamelogs/2014/1134160","RW"]
["DET","http://www.cbssports.com/nhl/teams/page/DET","Danny DeKeyser","http://www.cbssports.com/nhl/players/player/gamelogs/2014/2053880","D"]
["DET","http://www.cbssports.com/nhl/teams/page/DET","Darren Helm","http://www.cbssports.com/nhl/players/player/gamelogs/2014/565675","C"]
["FLA","http://www.cbssports.com/nhl/teams/page/FLA","Dave Bolland","http://www.cbssports.com/nhl/players/player/gamelogs/2014/565361","C"]
["STL","http://www.cbssports.com/nhl/teams/page/STL","David Backes","http://www.cbssports.com/nhl/players/player/gamelogs/2014/1134106","C"]
["TOR","http://www.cbssports.com/nhl/teams/page/TOR","David Clarkson","http://www.cbssports.com/nhl/players/player/gamelogs/2014/566097","RW"]
["MON","http://www.cbssports.com/nhl/teams/page/MON","David Desharnais","http://www.cbssports.com/nhl/players/player/gamelogs/2014/1639595","C"]
["CGY","http://www.cbssports.com/nhl/teams/page/CGY","David Jones","http://www.cbssports.com/nhl/players/player/gamelogs/2014/1283885","RW"]
["BOS","http://www.cbssports.com/nhl/teams/page/BOS","David Krejci","http://www.cbssports.com/nhl/players/player/gamelogs/2014/1133596","C"]
["OTT","http://www.cbssports.com/nhl/teams/page/OTT","David Legwand","http://www.cbssports.com/nhl/players/player/gamelogs/2014/20466","C"]
["PIT","http://www.cbssports.com/nhl/teams/page/PIT","David Perron","http://www.cbssports.com/nhl/players/player/gamelogs/2014/1282181","LW"]
["CHI","http://www.cbssports.com/nhl/teams/page/CHI","David Rundblad","http://www.cbssports.com/nhl/players/player/gamelogs/2014/1897773","D"]
["CLB","http://www.cbssports.com/nhl/teams/page/CLB","David Savard","http://www.cbssports.com/nhl/players/player/gamelogs/2014/1707452","D"]
["BOS","http://www.cbssports.com/nhl/teams/page/BOS","Dennis Seidenberg","http://www.cbssports.com/nhl/players/player/gamelogs/2014/369011","D"]
["CGY","http://www.cbssports.com/nhl/teams/page/CGY","Dennis Wideman","http://www.cbssports.com/nhl/players/player/gamelogs/2014/435308","D"]
["VAN","http://www.cbssports.com/nhl/teams/page/VAN","Derek Dorsett","http://www.cbssports.com/nhl/players/player/gamelogs/2014/1280563","RW"]
["FLA","http://www.cbssports.com/nhl/teams/page/FLA","Derek MacKenzie","http://www.cbssports.com/nhl/players/player/gamelogs/2014/152173","C"]
["EDM","http://www.cbssports.com/nhl/teams/page/EDM","Derek Roy","http://www.cbssports.com/nhl/players/player/gamelogs/2014/272752","C"]
["NYR","http://www.cbssports.com/nhl/teams/page/NYR","Derek Stepan","http://www.cbssports.com/nhl/players/player/gamelogs/2014/1770995","C"]
["NYR","http://www.cbssports.com/nhl/teams/page/NYR","Derick Brassard","http://www.cbssports.com/nhl/players/player/gamelogs/2014/1133462","C"]
["ANA","http://www.cbssports.com/nhl/teams/page/ANA","Devante Smith-Pelly","http://www.cbssports.com/nhl/players/player/gamelogs/2014/2058140","RW"]
["TOR","http://www.cbssports.com/nhl/teams/page/TOR","Dion Phaneuf","http://www.cbssports.com/nhl/players/player/gamelogs/2014/433604","D"]
["STL","http://www.cbssports.com/nhl/teams/page/STL","Dmitrij Jaskin","http://www.cbssports.com/nhl/players/player/gamelogs/2014/2054434","RW"]
["FLA","http://www.cbssports.com/nhl/teams/page/FLA","Dmitry Kulikov","http://www.cbssports.com/nhl/players/player/gamelogs/2014/1707518","D"]
["NYR","http://www.cbssports.com/nhl/teams/page/NYR","Dominic Moore","http://www.cbssports.com/nhl/players/player/gamelogs/2014/204680","C"]
["BOS","http://www.cbssports.com/nhl/teams/page/BOS","Dougie Hamilton","http://www.cbssports.com/nhl/players/player/gamelogs/2014/1897675","D"]
["LA","http://www.cbssports.com/nhl/teams/page/LA","Drew Doughty","http://www.cbssports.com/nhl/players/player/gamelogs/2014/1628806","D"]
["DET","http://www.cbssports.com/nhl/teams/page/DET","Drew Miller","http://www.cbssports.com/nhl/players/player/gamelogs/2014/1137451","LW"]
["BUF","http://www.cbssports.com/nhl/teams/page/BUF","Drew Stafford","http://www.cbssports.com/nhl/players/player/gamelogs/2014/1133619","RW"]
["CHI","http://www.cbssports.com/nhl/teams/page/CHI","Duncan Keith","http://www.cbssports.com/nhl/players/player/gamelogs/2014/435185","D"]
["LA","http://www.cbssports.com/nhl/teams/page/LA","Dustin Brown","http://www.cbssports.com/nhl/players/player/gamelogs/2014/433636","RW"]
["WPG","http://www.cbssports.com/nhl/teams/page/WPG","Dustin Byfuglien","http://www.cbssports.com/nhl/players/player/gamelogs/2014/566539","D"]
["LA","http://www.cbssports.com/nhl/teams/page/LA","Dwight King","http://www.cbssports.com/nhl/players/player/gamelogs/2014/1280578","LW"]
["FLA","http://www.cbssports.com/nhl/teams/page/FLA","Dylan Olsen","http://www.cbssports.com/nhl/players/player/gamelogs/2014/1899126","D"]
["CAR","http://www.cbssports.com/nhl/teams/page/CAR","Elias Lindholm","http://www.cbssports.com/nhl/players/player/gamelogs/2014/2076026","C"]
["WAS","http://www.cbssports.com/nhl/teams/page/WAS","Eric Fehr","http://www.cbssports.com/nhl/players/player/gamelogs/2014/433648","RW"]
["NJ","http://www.cbssports.com/nhl/teams/page/NJ","Eric Gelinas","http://www.cbssports.com/nhl/players/player/gamelogs/2014/1707669","D"]
["OTT","http://www.cbssports.com/nhl/teams/page/OTT","Eric Gryba","http://www.cbssports.com/nhl/players/player/gamelogs/2014/1770918","D"]
["NSH","http://www.cbssports.com/nhl/teams/page/NSH","Eric Nystrom","http://www.cbssports.com/nhl/players/player/gamelogs/2014/566124","LW"]
["CAR","http://www.cbssports.com/nhl/teams/page/CAR","Eric Staal","http://www.cbssports.com/nhl/players/player/gamelogs/2014/433611","C"]
["DAL","http://www.cbssports.com/nhl/teams/page/DAL","Erik Cole","http://www.cbssports.com/nhl/players/player/gamelogs/2014/204487","RW"]
["OTT","http://www.cbssports.com/nhl/teams/page/OTT","Erik Condra","http://www.cbssports.com/nhl/players/player/gamelogs/2014/1707586","RW"]
["FLA","http://www.cbssports.com/nhl/teams/page/FLA","Erik Gudbranson","http://www.cbssports.com/nhl/players/player/gamelogs/2014/1770920","D"]
["MIN","http://www.cbssports.com/nhl/teams/page/MIN","Erik Haula","http://www.cbssports.com/nhl/players/player/gamelogs/2014/2094579","LW"]
["COL","http://www.cbssports.com/nhl/teams/page/COL","Erik Johnson","http://www.cbssports.com/nhl/players/player/gamelogs/2014/1228267","D"]
["OTT","http://www.cbssports.com/nhl/teams/page/OTT","Erik Karlsson","http://www.cbssports.com/nhl/players/player/gamelogs/2014/1697789","D"]
["WPG","http://www.cbssports.com/nhl/teams/page/WPG","Evander Kane","http://www.cbssports.com/nhl/players/player/gamelogs/2014/1707561","LW"]
["PIT","http://www.cbssports.com/nhl/teams/page/PIT","Evgeni Malkin","http://www.cbssports.com/nhl/players/player/gamelogs/2014/1128973","C"]
["WAS","http://www.cbssports.com/nhl/teams/page/WAS","Evgeny Kuznetsov","http://www.cbssports.com/nhl/players/player/gamelogs/2014/2119761","C"]
["NSH","http://www.cbssports.com/nhl/teams/page/NSH","Filip Forsberg","http://www.cbssports.com/nhl/players/player/gamelogs/2014/2000656","C"]
["ANA","http://www.cbssports.com/nhl/teams/page/ANA","Francois Beauchemin","http://www.cbssports.com/nhl/players/player/gamelogs/2014/204443","D"]
["NYI","http://www.cbssports.com/nhl/teams/page/NYI","Frans Nielsen","http://www.cbssports.com/nhl/players/player/gamelogs/2014/1134138","C"]
["NSH","http://www.cbssports.com/nhl/teams/page/NSH","Gabriel Bourque","http://www.cbssports.com/nhl/players/player/gamelogs/2014/1707388","LW"]
["COL","http://www.cbssports.com/nhl/teams/page/COL","Gabriel Landeskog","http://www.cbssports.com/nhl/players/player/gamelogs/2014/1897704","LW"]
["BOS","http://www.cbssports.com/nhl/teams/page/BOS","Gregory Campbell","http://www.cbssports.com/nhl/players/player/gamelogs/2014/347844","C"]
["DET","http://www.cbssports.com/nhl/teams/page/DET","Gustav Nyquist","http://www.cbssports.com/nhl/players/player/gamelogs/2014/1897745","C"]
["ANA","http://www.cbssports.com/nhl/teams/page/ANA","Hampus Lindholm","http://www.cbssports.com/nhl/players/player/gamelogs/2014/2000665","D"]
["VAN","http://www.cbssports.com/nhl/teams/page/VAN","Henrik Sedin","http://www.cbssports.com/nhl/players/player/gamelogs/2014/151204","C"]
["DET","http://www.cbssports.com/nhl/teams/page/DET","Henrik Zetterberg","http://www.cbssports.com/nhl/players/player/gamelogs/2014/151240","LW"]
["NYR","http://www.cbssports.com/nhl/teams/page/NYR","J.T. Miller","http://www.cbssports.com/nhl/players/player/gamelogs/2014/1892911","C"]
["CLB","http://www.cbssports.com/nhl/teams/page/CLB","Jack Johnson","http://www.cbssports.com/nhl/players/player/gamelogs/2014/1209085","D"]
["WPG","http://www.cbssports.com/nhl/teams/page/WPG","Jacob Trouba","http://www.cbssports.com/nhl/players/player/gamelogs/2014/2000679","D"]
["STL","http://www.cbssports.com/nhl/teams/page/STL","Jaden Schwartz","http://www.cbssports.com/nhl/players/player/gamelogs/2014/1778767","LW"]
["TOR","http://www.cbssports.com/nhl/teams/page/TOR","Jake Gardiner","http://www.cbssports.com/nhl/players/player/gamelogs/2014/1897666","D"]
["LA","http://www.cbssports.com/nhl/teams/page/LA","Jake Muzzin","http://www.cbssports.com/nhl/players/player/gamelogs/2014/1639452","D"]
["ANA","http://www.cbssports.com/nhl/teams/page/ANA","Jakob Silfverberg","http://www.cbssports.com/nhl/players/player/gamelogs/2014/1970778","RW"]
["DET","http://www.cbssports.com/nhl/teams/page/DET","Jakub Kindl","http://www.cbssports.com/nhl/players/player/gamelogs/2014/565680","D"]
["PHI","http://www.cbssports.com/nhl/teams/page/PHI","Jakub Voracek","http://www.cbssports.com/nhl/players/player/gamelogs/2014/1280617","RW"]
["NSH","http://www.cbssports.com/nhl/teams/page/NSH","James Neal","http://www.cbssports.com/nhl/players/player/gamelogs/2014/565402","LW"]
["SJ","http://www.cbssports.com/nhl/teams/page/SJ","James Sheppard","http://www.cbssports.com/nhl/players/player/gamelogs/2014/1133486","LW"]
["TOR","http://www.cbssports.com/nhl/teams/page/TOR","James van Riemsdyk","http://www.cbssports.com/nhl/players/player/gamelogs/2014/1689413","LW"]
["CLB","http://www.cbssports.com/nhl/teams/page/CLB","James Wisniewski","http://www.cbssports.com/nhl/players/player/gamelogs/2014/565433","D"]
["DAL","http://www.cbssports.com/nhl/teams/page/DAL","Jamie Benn","http://www.cbssports.com/nhl/players/player/gamelogs/2014/1639346","LW"]
["LA","http://www.cbssports.com/nhl/teams/page/LA","Jamie McBain","http://www.cbssports.com/nhl/players/player/gamelogs/2014/1707593","D"]
["DAL","http://www.cbssports.com/nhl/teams/page/DAL","Jamie Oleksiak","http://www.cbssports.com/nhl/players/player/gamelogs/2014/1897747","D"]
["COL","http://www.cbssports.com/nhl/teams/page/COL","Jan Hejda","http://www.cbssports.com/nhl/players/player/gamelogs/2014/1134122","D"]
["VAN","http://www.cbssports.com/nhl/teams/page/VAN","Jannik Hansen","http://www.cbssports.com/nhl/players/player/gamelogs/2014/566017","RW"]
["OTT","http://www.cbssports.com/nhl/teams/page/OTT","Jared Cowen","http://www.cbssports.com/nhl/players/player/gamelogs/2014/1707559","D"]
["MIN","http://www.cbssports.com/nhl/teams/page/MIN","Jared Spurgeon","http://www.cbssports.com/nhl/players/player/gamelogs/2014/1639484","D"]
["COL","http://www.cbssports.com/nhl/teams/page/COL","Jarome Iginla","http://www.cbssports.com/nhl/players/player/gamelogs/2014/19096","RW"]
["NJ","http://www.cbssports.com/nhl/teams/page/NJ","Jaromir Jagr","http://www.cbssports.com/nhl/players/player/gamelogs/2014/19278","RW"]
["LA","http://www.cbssports.com/nhl/teams/page/LA","Jarret Stoll","http://www.cbssports.com/nhl/players/player/gamelogs/2014/204797","C"]
["WAS","http://www.cbssports.com/nhl/teams/page/WAS","Jason Chimera","http://www.cbssports.com/nhl/players/player/gamelogs/2014/152286","LW"]
["DAL","http://www.cbssports.com/nhl/teams/page/DAL","Jason Demers","http://www.cbssports.com/nhl/players/player/gamelogs/2014/1639513","D"]
["TB","http://www.cbssports.com/nhl/teams/page/TB","Jason Garrison","http://www.cbssports.com/nhl/players/player/gamelogs/2014/1639667","D"]
["MIN","http://www.cbssports.com/nhl/teams/page/MIN","Jason Pominville","http://www.cbssports.com/nhl/players/player/gamelogs/2014/272751","RW"]
["DAL","http://www.cbssports.com/nhl/teams/page/DAL","Jason Spezza","http://www.cbssports.com/nhl/players/player/gamelogs/2014/273557","C"]
["MIN","http://www.cbssports.com/nhl/teams/page/MIN","Jason Zucker","http://www.cbssports.com/nhl/players/player/gamelogs/2014/1960880","LW"]
["WAS","http://www.cbssports.com/nhl/teams/page/WAS","Jay Beagle","http://www.cbssports.com/nhl/players/player/gamelogs/2014/1605163","C"]
["STL","http://www.cbssports.com/nhl/teams/page/STL","Jay Bouwmeester","http://www.cbssports.com/nhl/players/player/gamelogs/2014/347842","D"]
["WPG","http://www.cbssports.com/nhl/teams/page/WPG","Jay Harrison","http://www.cbssports.com/nhl/players/player/gamelogs/2014/273529","D"]
["CAR","http://www.cbssports.com/nhl/teams/page/CAR","Jay McClement","http://www.cbssports.com/nhl/players/player/gamelogs/2014/274275","C"]
["LA","http://www.cbssports.com/nhl/teams/page/LA","Jeff Carter","http://www.cbssports.com/nhl/players/player/gamelogs/2014/434820","C"]
["EDM","http://www.cbssports.com/nhl/teams/page/EDM","Jeff Petry","http://www.cbssports.com/nhl/players/player/gamelogs/2014/1765200","D"]
["CAR","http://www.cbssports.com/nhl/teams/page/CAR","Jeff Skinner","http://www.cbssports.com/nhl/players/player/gamelogs/2014/1770990","LW"]
["NYR","http://www.cbssports.com/nhl/teams/page/NYR","Jesper Fast","http://www.cbssports.com/nhl/players/player/gamelogs/2014/2094564","RW"]
["FLA","http://www.cbssports.com/nhl/teams/page/FLA","Jimmy Hayes","http://www.cbssports.com/nhl/players/player/gamelogs/2014/1899100","RW"]
["CGY","http://www.cbssports.com/nhl/teams/page/CGY","Jiri Hudler","http://www.cbssports.com/nhl/players/player/gamelogs/2014/433597","LW"]
["MON","http://www.cbssports.com/nhl/teams/page/MON","Jiri Sekac","http://www.cbssports.com/nhl/players/player/gamelogs/2014/2147518","LW"]
["CAR","http://www.cbssports.com/nhl/teams/page/CAR","Jiri Tlusty","http://www.cbssports.com/nhl/players/player/gamelogs/2014/1137128","LW"]
["CGY","http://www.cbssports.com/nhl/teams/page/CGY","Joe Colborne","http://www.cbssports.com/nhl/players/player/gamelogs/2014/1770889","C"]
["SJ","http://www.cbssports.com/nhl/teams/page/SJ","Joe Pavelski","http://www.cbssports.com/nhl/players/player/gamelogs/2014/1133717","C"]
["SJ","http://www.cbssports.com/nhl/teams/page/SJ","Joe Thornton","http://www.cbssports.com/nhl/players/player/gamelogs/2014/19634","C"]
["WAS","http://www.cbssports.com/nhl/teams/page/WAS","Joel Ward","http://www.cbssports.com/nhl/players/player/gamelogs/2014/274306","RW"]
["TOR","http://www.cbssports.com/nhl/teams/page/TOR","Joffrey Lupul","http://www.cbssports.com/nhl/players/player/gamelogs/2014/372289","RW"]
["DET","http://www.cbssports.com/nhl/teams/page/DET","Johan Franzen","http://www.cbssports.com/nhl/players/player/gamelogs/2014/559657","LW"]
["WAS","http://www.cbssports.com/nhl/teams/page/WAS","John Carlson","http://www.cbssports.com/nhl/players/player/gamelogs/2014/1639364","D"]
["DAL","http://www.cbssports.com/nhl/teams/page/DAL","John Klingberg","http://www.cbssports.com/nhl/players/player/gamelogs/2014/2094406","D"]
["COL","http://www.cbssports.com/nhl/teams/page/COL","John Mitchell","http://www.cbssports.com/nhl/players/player/gamelogs/2014/566122","C"]
["NYI","http://www.cbssports.com/nhl/teams/page/NYI","John Tavares","http://www.cbssports.com/nhl/players/player/gamelogs/2014/1685406","C"]
["CAR","http://www.cbssports.com/nhl/teams/page/CAR","John-Michael Liles","http://www.cbssports.com/nhl/players/player/gamelogs/2014/435205","D"]
["NYI","http://www.cbssports.com/nhl/teams/page/NYI","Johnny Boychuk","http://www.cbssports.com/nhl/players/player/gamelogs/2014/346965","D"]
["CGY","http://www.cbssports.com/nhl/teams/page/CGY","Johnny Gaudreau","http://www.cbssports.com/nhl/players/player/gamelogs/2014/2123003","LW"]
["NJ","http://www.cbssports.com/nhl/teams/page/NJ","Jon Merrill","http://www.cbssports.com/nhl/players/player/gamelogs/2014/2084085","D"]
["TB","http://www.cbssports.com/nhl/teams/page/TB","Jonathan Drouin","http://www.cbssports.com/nhl/players/player/gamelogs/2014/2076019","LW"]
["DET","http://www.cbssports.com/nhl/teams/page/DET","Jonathan Ericsson","http://www.cbssports.com/nhl/players/player/gamelogs/2014/1133591","D"]
["FLA","http://www.cbssports.com/nhl/teams/page/FLA","Jonathan Huberdeau","http://www.cbssports.com/nhl/players/player/gamelogs/2014/1897686","C"]
["CHI","http://www.cbssports.com/nhl/teams/page/CHI","Jonathan Toews","http://www.cbssports.com/nhl/players/player/gamelogs/2014/1282456","C"]
["EDM","http://www.cbssports.com/nhl/teams/page/EDM","Jordan Eberle","http://www.cbssports.com/nhl/players/player/gamelogs/2014/1639388","RW"]
["CAR","http://www.cbssports.com/nhl/teams/page/CAR","Jordan Staal","http://www.cbssports.com/nhl/players/player/gamelogs/2014/1133726","C"]
["DAL","http://www.cbssports.com/nhl/teams/page/DAL","Jordie Benn","http://www.cbssports.com/nhl/players/player/gamelogs/2014/1769706","D"]
["STL","http://www.cbssports.com/nhl/teams/page/STL","Jori Lehtera","http://www.cbssports.com/nhl/players/player/gamelogs/2014/2147297","C"]
["NYI","http://www.cbssports.com/nhl/teams/page/NYI","Josh Bailey","http://www.cbssports.com/nhl/players/player/gamelogs/2014/1639341","LW"]
["CGY","http://www.cbssports.com/nhl/teams/page/CGY","Josh Jooris","http://www.cbssports.com/nhl/players/player/gamelogs/2014/2094997","C"]
["FLA","http://www.cbssports.com/nhl/teams/page/FLA","Jussi Jokinen","http://www.cbssports.com/nhl/players/player/gamelogs/2014/565389","LW"]
["DET","http://www.cbssports.com/nhl/teams/page/DET","Justin Abdelkader","http://www.cbssports.com/nhl/players/player/gamelogs/2014/1606856","LW"]
["SJ","http://www.cbssports.com/nhl/teams/page/SJ","Justin Braun","http://www.cbssports.com/nhl/players/player/gamelogs/2014/1770879","D"]
["CAR","http://www.cbssports.com/nhl/teams/page/CAR","Justin Faulk","http://www.cbssports.com/nhl/players/player/gamelogs/2014/1897659","D"]
["MIN","http://www.cbssports.com/nhl/teams/page/MIN","Justin Fontaine","http://www.cbssports.com/nhl/players/player/gamelogs/2014/1899088","RW"]
["EDM","http://www.cbssports.com/nhl/teams/page/EDM","Justin Schultz","http://www.cbssports.com/nhl/players/player/gamelogs/2014/1993276","D"]
["LA","http://www.cbssports.com/nhl/teams/page/LA","Justin Williams","http://www.cbssports.com/nhl/players/player/gamelogs/2014/204851","RW"]
["WAS","http://www.cbssports.com/nhl/teams/page/WAS","Karl Alzner","http://www.cbssports.com/nhl/players/player/gamelogs/2014/1282165","D"]
["ARI","http://www.cbssports.com/nhl/teams/page/ARI","Keith Yandle","http://www.cbssports.com/nhl/players/player/gamelogs/2014/566137","D"]
["VAN","http://www.cbssports.com/nhl/teams/page/VAN","Kevin Bieksa","http://www.cbssports.com/nhl/players/player/gamelogs/2014/583339","D"]
["CLB","http://www.cbssports.com/nhl/teams/page/CLB","Kevin Connauton","http://www.cbssports.com/nhl/players/player/gamelogs/2014/1707394","D"]
["NYR","http://www.cbssports.com/nhl/teams/page/NYR","Kevin Hayes","http://www.cbssports.com/nhl/players/player/gamelogs/2014/2145886","RW"]
["NYR","http://www.cbssports.com/nhl/teams/page/NYR","Kevin Klein","http://www.cbssports.com/nhl/players/player/gamelogs/2014/433212","D"]
["STL","http://www.cbssports.com/nhl/teams/page/STL","Kevin Shattenkirk","http://www.cbssports.com/nhl/players/player/gamelogs/2014/1770986","D"]
["PIT","http://www.cbssports.com/nhl/teams/page/PIT","Kris Letang","http://www.cbssports.com/nhl/players/player/gamelogs/2014/566030","D"]
["CGY","http://www.cbssports.com/nhl/teams/page/CGY","Kris Russell","http://www.cbssports.com/nhl/players/player/gamelogs/2014/565699","D"]
["CHI","http://www.cbssports.com/nhl/teams/page/CHI","Kris Versteeg","http://www.cbssports.com/nhl/players/player/gamelogs/2014/1133626","RW"]
["MIN","http://www.cbssports.com/nhl/teams/page/MIN","Kyle Brodziak","http://www.cbssports.com/nhl/players/player/gamelogs/2014/435114","C"]
["ARI","http://www.cbssports.com/nhl/teams/page/ARI","Kyle Chipchura","http://www.cbssports.com/nhl/players/player/gamelogs/2014/566001","C"]
["LA","http://www.cbssports.com/nhl/teams/page/LA","Kyle Clifford","http://www.cbssports.com/nhl/players/player/gamelogs/2014/1707392","LW"]
["NYI","http://www.cbssports.com/nhl/teams/page/NYI","Kyle Okposo","http://www.cbssports.com/nhl/players/player/gamelogs/2014/1493839","RW"]
["ANA","http://www.cbssports.com/nhl/teams/page/ANA","Kyle Palmieri","http://www.cbssports.com/nhl/players/player/gamelogs/2014/1770966","RW"]
["DET","http://www.cbssports.com/nhl/teams/page/DET","Kyle Quincey","http://www.cbssports.com/nhl/players/player/gamelogs/2014/433605","D"]
["OTT","http://www.cbssports.com/nhl/teams/page/OTT","Kyle Turris","http://www.cbssports.com/nhl/players/player/gamelogs/2014/1606858","C"]
["CGY","http://www.cbssports.com/nhl/teams/page/CGY","Lance Bouma","http://www.cbssports.com/nhl/players/player/gamelogs/2014/1639352","LW"]
["MON","http://www.cbssports.com/nhl/teams/page/MON","Lars Eller","http://www.cbssports.com/nhl/players/player/gamelogs/2014/1628807","C"]
["ARI","http://www.cbssports.com/nhl/teams/page/ARI","Lauri Korpikoski","http://www.cbssports.com/nhl/players/player/gamelogs/2014/1134127","LW"]
["NYR","http://www.cbssports.com/nhl/teams/page/NYR","Lee Stempniak","http://www.cbssports.com/nhl/players/player/gamelogs/2014/566058","RW"]
["TOR","http://www.cbssports.com/nhl/teams/page/TOR","Leo Komarov","http://www.cbssports.com/nhl/players/player/gamelogs/2014/2038244","C"]
["EDM","http://www.cbssports.com/nhl/teams/page/EDM","Leon Draisaitl","http://www.cbssports.com/nhl/players/player/gamelogs/2014/2147141","C"]
["VAN","http://www.cbssports.com/nhl/teams/page/VAN","Linden Vey","http://www.cbssports.com/nhl/players/player/gamelogs/2014/1707465","RW"]
["SJ","http://www.cbssports.com/nhl/teams/page/SJ","Logan Couture","http://www.cbssports.com/nhl/players/player/gamelogs/2014/1282170","C"]
["BOS","http://www.cbssports.com/nhl/teams/page/BOS","Loui Eriksson","http://www.cbssports.com/nhl/players/player/gamelogs/2014/565668","LW"]
["NYI","http://www.cbssports.com/nhl/teams/page/NYI","Lubomir Visnovsky","http://www.cbssports.com/nhl/players/player/gamelogs/2014/204836","D"]
["DET","http://www.cbssports.com/nhl/teams/page/DET","Luke Glendening","http://www.cbssports.com/nhl/players/player/gamelogs/2014/2095135","RW"]
["PHI","http://www.cbssports.com/nhl/teams/page/PHI","Luke Schenn","http://www.cbssports.com/nhl/players/player/gamelogs/2014/1628815","D"]
["NYR","http://www.cbssports.com/nhl/teams/page/NYR","Marc Staal","http://www.cbssports.com/nhl/players/player/gamelogs/2014/565423","D"]
["SJ","http://www.cbssports.com/nhl/teams/page/SJ","Marc-Edouard Vlasic","http://www.cbssports.com/nhl/players/player/gamelogs/2014/1133727","D"]
["STL","http://www.cbssports.com/nhl/teams/page/STL","Marcel Goc","http://www.cbssports.com/nhl/players/player/gamelogs/2014/273527","C"]
["MIN","http://www.cbssports.com/nhl/teams/page/MIN","Marco Scandella","http://www.cbssports.com/nhl/players/player/gamelogs/2014/1707453","D"]
["BUF","http://www.cbssports.com/nhl/teams/page/BUF","Marcus Foligno","http://www.cbssports.com/nhl/players/player/gamelogs/2014/1707405","LW"]
["WAS","http://www.cbssports.com/nhl/teams/page/WAS","Marcus Johansson","http://www.cbssports.com/nhl/players/player/gamelogs/2014/1771123","LW"]
["CHI","http://www.cbssports.com/nhl/teams/page/CHI","Marcus Kruger","http://www.cbssports.com/nhl/players/player/gamelogs/2014/1812123","C"]
["NJ","http://www.cbssports.com/nhl/teams/page/NJ","Marek Zidlicky","http://www.cbssports.com/nhl/players/player/gamelogs/2014/435315","D"]
["LA","http://www.cbssports.com/nhl/teams/page/LA","Marian Gaborik","http://www.cbssports.com/nhl/players/player/gamelogs/2014/205109","RW"]
["CHI","http://www.cbssports.com/nhl/teams/page/CHI","Marian Hossa","http://www.cbssports.com/nhl/players/player/gamelogs/2014/19668","RW"]
["PIT","http://www.cbssports.com/nhl/teams/page/PIT","Mark Arcobello","http://www.cbssports.com/nhl/players/player/gamelogs/2014/1899071","C"]
["CGY","http://www.cbssports.com/nhl/teams/page/CGY","Mark Giordano","http://www.cbssports.com/nhl/players/player/gamelogs/2014/435155","D"]
["CLB","http://www.cbssports.com/nhl/teams/page/CLB","Mark Letestu","http://www.cbssports.com/nhl/players/player/gamelogs/2014/1713505","C"]
["WPG","http://www.cbssports.com/nhl/teams/page/WPG","Mark Scheifele","http://www.cbssports.com/nhl/players/player/gamelogs/2014/1897780","C"]
["OTT","http://www.cbssports.com/nhl/teams/page/OTT","Mark Stone","http://www.cbssports.com/nhl/players/player/gamelogs/2014/1770996","RW"]
["PHI","http://www.cbssports.com/nhl/teams/page/PHI","Mark Streit","http://www.cbssports.com/nhl/players/player/gamelogs/2014/565841","D"]
["WPG","http://www.cbssports.com/nhl/teams/page/WPG","Mark Stuart","http://www.cbssports.com/nhl/players/player/gamelogs/2014/566407","D"]
["CGY","http://www.cbssports.com/nhl/teams/page/CGY","Markus Granlund","http://www.cbssports.com/nhl/players/player/gamelogs/2014/2094573","C"]
["ARI","http://www.cbssports.com/nhl/teams/page/ARI","Martin Erat","http://www.cbssports.com/nhl/players/player/gamelogs/2014/151057","LW"]
["ARI","http://www.cbssports.com/nhl/teams/page/ARI","Martin Hanzal","http://www.cbssports.com/nhl/players/player/gamelogs/2014/1134121","C"]
["NJ","http://www.cbssports.com/nhl/teams/page/NJ","Martin Havlat","http://www.cbssports.com/nhl/players/player/gamelogs/2014/151080","RW"]
["NYR","http://www.cbssports.com/nhl/teams/page/NYR","Martin St. Louis","http://www.cbssports.com/nhl/players/player/gamelogs/2014/20528","RW"]
["CGY","http://www.cbssports.com/nhl/teams/page/CGY","Mason Raymond","http://www.cbssports.com/nhl/players/player/gamelogs/2014/1282478","LW"]
["WPG","http://www.cbssports.com/nhl/teams/page/WPG","Mathieu Perreault","http://www.cbssports.com/nhl/players/player/gamelogs/2014/1282477","C"]
["NYR","http://www.cbssports.com/nhl/teams/page/NYR","Mats Zuccarello","http://www.cbssports.com/nhl/players/player/gamelogs/2014/1771018","RW"]
["ANA","http://www.cbssports.com/nhl/teams/page/ANA","Matt Beleskey","http://www.cbssports.com/nhl/players/player/gamelogs/2014/1639343","LW"]
["CLB","http://www.cbssports.com/nhl/teams/page/CLB","Matt Calvert","http://www.cbssports.com/nhl/players/player/gamelogs/2014/1639361","LW"]
["TB","http://www.cbssports.com/nhl/teams/page/TB","Matt Carle","http://www.cbssports.com/nhl/players/player/gamelogs/2014/1103753","D"]
["MIN","http://www.cbssports.com/nhl/teams/page/MIN","Matt Cooke","http://www.cbssports.com/nhl/players/player/gamelogs/2014/19806","LW"]
["NSH","http://www.cbssports.com/nhl/teams/page/NSH","Matt Cullen","http://www.cbssports.com/nhl/players/player/gamelogs/2014/19630","C"]
["COL","http://www.cbssports.com/nhl/teams/page/COL","Matt Duchene","http://www.cbssports.com/nhl/players/player/gamelogs/2014/1685404","C"]
["EDM","http://www.cbssports.com/nhl/teams/page/EDM","Matt Fraser","http://www.cbssports.com/nhl/players/player/gamelogs/2014/1897662","LW"]
["LA","http://www.cbssports.com/nhl/teams/page/LA","Matt Greene","http://www.cbssports.com/nhl/players/player/gamelogs/2014/566110","D"]
["WPG","http://www.cbssports.com/nhl/teams/page/WPG","Matt Halischuk","http://www.cbssports.com/nhl/players/player/gamelogs/2014/1283194","RW"]
["EDM","http://www.cbssports.com/nhl/teams/page/EDM","Matt Hendricks","http://www.cbssports.com/nhl/players/player/gamelogs/2014/1286082","C"]
["NYR","http://www.cbssports.com/nhl/teams/page/NYR","Matt Hunwick","http://www.cbssports.com/nhl/players/player/gamelogs/2014/1286415","D"]
["SJ","http://www.cbssports.com/nhl/teams/page/SJ","Matt Irwin","http://www.cbssports.com/nhl/players/player/gamelogs/2014/1802643","D"]
["NYI","http://www.cbssports.com/nhl/teams/page/NYI","Matt Martin","http://www.cbssports.com/nhl/players/player/gamelogs/2014/1639439","LW"]
["BUF","http://www.cbssports.com/nhl/teams/page/BUF","Matt Moulson","http://www.cbssports.com/nhl/players/player/gamelogs/2014/1137126","LW"]
["SJ","http://www.cbssports.com/nhl/teams/page/SJ","Matt Nieto","http://www.cbssports.com/nhl/players/player/gamelogs/2014/2094796","LW"]
["WAS","http://www.cbssports.com/nhl/teams/page/WAS","Matt Niskanen","http://www.cbssports.com/nhl/players/player/gamelogs/2014/1282446","D"]
["PHI","http://www.cbssports.com/nhl/teams/page/PHI","Matt Read","http://www.cbssports.com/nhl/players/player/gamelogs/2014/1897766","RW"]
["CGY","http://www.cbssports.com/nhl/teams/page/CGY","Matt Stajan","http://www.cbssports.com/nhl/players/player/gamelogs/2014/367817","C"]
["SJ","http://www.cbssports.com/nhl/teams/page/SJ","Matt Tennyson","http://www.cbssports.com/nhl/players/player/gamelogs/2014/2001767","D"]
["NSH","http://www.cbssports.com/nhl/teams/page/NSH","Mattias Ekholm","http://www.cbssports.com/nhl/players/player/gamelogs/2014/1897652","D"]
["MON","http://www.cbssports.com/nhl/teams/page/MON","Max Pacioretty","http://www.cbssports.com/nhl/players/player/gamelogs/2014/1628813","LW"]
["PIT","http://www.cbssports.com/nhl/teams/page/PIT","Maxim Lapierre","http://www.cbssports.com/nhl/players/player/gamelogs/2014/433676","C"]
["COL","http://www.cbssports.com/nhl/teams/page/COL","Maxime Talbot","http://www.cbssports.com/nhl/players/player/gamelogs/2014/371860","C"]
["SJ","http://www.cbssports.com/nhl/teams/page/SJ","Melker Karlsson","http://www.cbssports.com/nhl/players/player/gamelogs/2014/2147185","RW"]
["PHI","http://www.cbssports.com/nhl/teams/page/PHI","Michael Del Zotto","http://www.cbssports.com/nhl/players/player/gamelogs/2014/1639380","D"]
["WPG","http://www.cbssports.com/nhl/teams/page/WPG","Michael Frolik","http://www.cbssports.com/nhl/players/player/gamelogs/2014/1282428","RW"]
["NYI","http://www.cbssports.com/nhl/teams/page/NYI","Michael Grabner","http://www.cbssports.com/nhl/players/player/gamelogs/2014/1133704","RW"]
["PHI","http://www.cbssports.com/nhl/teams/page/PHI","Michael Raffl","http://www.cbssports.com/nhl/players/player/gamelogs/2014/2095287","LW"]
["NJ","http://www.cbssports.com/nhl/teams/page/NJ","Michael Ryder","http://www.cbssports.com/nhl/players/player/gamelogs/2014/204762","RW"]
["ARI","http://www.cbssports.com/nhl/teams/page/ARI","Michael Stone","http://www.cbssports.com/nhl/players/player/gamelogs/2014/1639486","D"]
["OTT","http://www.cbssports.com/nhl/teams/page/OTT","Mika Zibanejad","http://www.cbssports.com/nhl/players/player/gamelogs/2014/1897821","C"]
["CGY","http://www.cbssports.com/nhl/teams/page/CGY","Mikael Backlund","http://www.cbssports.com/nhl/players/player/gamelogs/2014/1280555","C"]
["MIN","http://www.cbssports.com/nhl/teams/page/MIN","Mikael Granlund","http://www.cbssports.com/nhl/players/player/gamelogs/2014/2036205","C"]
["NJ","http://www.cbssports.com/nhl/teams/page/NJ","Mike Cammalleri","http://www.cbssports.com/nhl/players/player/gamelogs/2014/368971","LW"]
["NSH","http://www.cbssports.com/nhl/teams/page/NSH","Mike Fisher","http://www.cbssports.com/nhl/players/player/gamelogs/2014/20424","C"]
["WAS","http://www.cbssports.com/nhl/teams/page/WAS","Mike Green","http://www.cbssports.com/nhl/players/player/gamelogs/2014/565379","D"]
["OTT","http://www.cbssports.com/nhl/teams/page/OTT","Mike Hoffman","http://www.cbssports.com/nhl/players/player/gamelogs/2014/1137449","LW"]
["NSH","http://www.cbssports.com/nhl/teams/page/NSH","Mike Ribeiro","http://www.cbssports.com/nhl/players/player/gamelogs/2014/152183","C"]
["LA","http://www.cbssports.com/nhl/teams/page/LA","Mike Richards","http://www.cbssports.com/nhl/players/player/gamelogs/2014/434908","C"]
["TOR","http://www.cbssports.com/nhl/teams/page/TOR","Mike Santorelli","http://www.cbssports.com/nhl/players/player/gamelogs/2014/1280604","C"]
["NYI","http://www.cbssports.com/nhl/teams/page/NYI","Mikhail Grabovski","http://www.cbssports.com/nhl/players/player/gamelogs/2014/1134118","C"]
["ARI","http://www.cbssports.com/nhl/teams/page/ARI","Mikkel Boedker","http://www.cbssports.com/nhl/players/player/gamelogs/2014/1628803","LW"]
["MIN","http://www.cbssports.com/nhl/teams/page/MIN","Mikko Koivu","http://www.cbssports.com/nhl/players/player/gamelogs/2014/566114","C"]
["BOS","http://www.cbssports.com/nhl/teams/page/BOS","Milan Lucic","http://www.cbssports.com/nhl/players/player/gamelogs/2014/1133424","LW"]
["OTT","http://www.cbssports.com/nhl/teams/page/OTT","Milan Michalek","http://www.cbssports.com/nhl/players/player/gamelogs/2014/433214","LW"]
["TOR","http://www.cbssports.com/nhl/teams/page/TOR","Morgan Rielly","http://www.cbssports.com/nhl/players/player/gamelogs/2014/2000673","D"]
["EDM","http://www.cbssports.com/nhl/teams/page/EDM","Nail Yakupov","http://www.cbssports.com/nhl/players/player/gamelogs/2014/2000682","RW"]
["COL","http://www.cbssports.com/nhl/teams/page/COL","Nate Guenin","http://www.cbssports.com/nhl/players/player/gamelogs/2014/1134119","D"]
["ANA","http://www.cbssports.com/nhl/teams/page/ANA","Nate Thompson","http://www.cbssports.com/nhl/players/player/gamelogs/2014/433614","C"]
["CAR","http://www.cbssports.com/nhl/teams/page/CAR","Nathan Gerbe","http://www.cbssports.com/nhl/players/player/gamelogs/2014/1628810","LW"]
["COL","http://www.cbssports.com/nhl/teams/page/COL","Nathan MacKinnon","http://www.cbssports.com/nhl/players/player/gamelogs/2014/2076027","C"]
["TOR","http://www.cbssports.com/nhl/teams/page/TOR","Nazem Kadri","http://www.cbssports.com/nhl/players/player/gamelogs/2014/1707417","C"]
["FLA","http://www.cbssports.com/nhl/teams/page/FLA","Nick Bjugstad","http://www.cbssports.com/nhl/players/player/gamelogs/2014/2054009","C"]
["VAN","http://www.cbssports.com/nhl/teams/page/VAN","Nick Bonino","http://www.cbssports.com/nhl/players/player/gamelogs/2014/1743550","C"]
["CLB","http://www.cbssports.com/nhl/teams/page/CLB","Nick Foligno","http://www.cbssports.com/nhl/players/player/gamelogs/2014/1133703","LW"]
["COL","http://www.cbssports.com/nhl/teams/page/COL","Nick Holden","http://www.cbssports.com/nhl/players/player/gamelogs/2014/1639719","D"]
["NYI","http://www.cbssports.com/nhl/teams/page/NYI","Nick Leddy","http://www.cbssports.com/nhl/players/player/gamelogs/2014/1770942","D"]
["PHI","http://www.cbssports.com/nhl/teams/page/PHI","Nick Schultz","http://www.cbssports.com/nhl/players/player/gamelogs/2014/205123","D"]
["PIT","http://www.cbssports.com/nhl/teams/page/PIT","Nick Spaling","http://www.cbssports.com/nhl/players/player/gamelogs/2014/1280609","C"]
["WAS","http://www.cbssports.com/nhl/teams/page/WAS","Nicklas Backstrom","http://www.cbssports.com/nhl/players/player/gamelogs/2014/1133460","C"]
["PHI","http://www.cbssports.com/nhl/teams/page/PHI","Nicklas Grossmann","http://www.cbssports.com/nhl/players/player/gamelogs/2014/565380","D"]
["BUF","http://www.cbssports.com/nhl/teams/page/BUF","Nicolas Deslauriers","http://www.cbssports.com/nhl/players/player/gamelogs/2014/1707397","LW"]
["TB","http://www.cbssports.com/nhl/teams/page/TB","Nikita Kucherov","http://www.cbssports.com/nhl/players/player/gamelogs/2014/2094594","RW"]
["EDM","http://www.cbssports.com/nhl/teams/page/EDM","Nikita Nikitin","http://www.cbssports.com/nhl/players/player/gamelogs/2014/1770960","D"]
["BUF","http://www.cbssports.com/nhl/teams/page/BUF","Nikita Zadorov","http://www.cbssports.com/nhl/players/player/gamelogs/2014/2076043","D"]
["CHI","http://www.cbssports.com/nhl/teams/page/CHI","Niklas Hjalmarsson","http://www.cbssports.com/nhl/players/player/gamelogs/2014/1282431","D"]
["DET","http://www.cbssports.com/nhl/teams/page/DET","Niklas Kronwall","http://www.cbssports.com/nhl/players/player/gamelogs/2014/435194","D"]
["NYI","http://www.cbssports.com/nhl/teams/page/NYI","Nikolay Kulemin","http://www.cbssports.com/nhl/players/player/gamelogs/2014/1639425","LW"]
["MIN","http://www.cbssports.com/nhl/teams/page/MIN","Nino Niederreiter","http://www.cbssports.com/nhl/players/player/gamelogs/2014/1765199","RW"]
["ARI","http://www.cbssports.com/nhl/teams/page/ARI","Oliver Ekman-Larsson","http://www.cbssports.com/nhl/players/player/gamelogs/2014/1765197","D"]
["PIT","http://www.cbssports.com/nhl/teams/page/PIT","Olli Maatta","http://www.cbssports.com/nhl/players/player/gamelogs/2014/2000666","D"]
["TB","http://www.cbssports.com/nhl/teams/page/TB","Ondrej Palat","http://www.cbssports.com/nhl/players/player/gamelogs/2014/1897753","LW"]
["EDM","http://www.cbssports.com/nhl/teams/page/EDM","Oscar Klefbom","http://www.cbssports.com/nhl/players/player/gamelogs/2014/2094999","D"]
["MON","http://www.cbssports.com/nhl/teams/page/MON","P.A. Parenteau","http://www.cbssports.com/nhl/players/player/gamelogs/2014/273227","RW"]
["MON","http://www.cbssports.com/nhl/teams/page/MON","P.K. Subban","http://www.cbssports.com/nhl/players/player/gamelogs/2014/1282455","D"]
["PIT","http://www.cbssports.com/nhl/teams/page/PIT","Pascal Dupuis","http://www.cbssports.com/nhl/players/player/gamelogs/2014/205162","RW"]
["PIT","http://www.cbssports.com/nhl/teams/page/PIT","Patric Hornqvist","http://www.cbssports.com/nhl/players/player/gamelogs/2014/1280574","RW"]
["BOS","http://www.cbssports.com/nhl/teams/page/BOS","Patrice Bergeron","http://www.cbssports.com/nhl/players/player/gamelogs/2014/433588","C"]
["CAR","http://www.cbssports.com/nhl/teams/page/CAR","Patrick Dwyer","http://www.cbssports.com/nhl/players/player/gamelogs/2014/1133590","RW"]
["DAL","http://www.cbssports.com/nhl/teams/page/DAL","Patrick Eaves","http://www.cbssports.com/nhl/players/player/gamelogs/2014/563440","RW"]
["CHI","http://www.cbssports.com/nhl/teams/page/CHI","Patrick Kane","http://www.cbssports.com/nhl/players/player/gamelogs/2014/1240390","RW"]
["SJ","http://www.cbssports.com/nhl/teams/page/SJ","Patrick Marleau","http://www.cbssports.com/nhl/players/player/gamelogs/2014/19674","C"]
["ANA","http://www.cbssports.com/nhl/teams/page/ANA","Patrick Maroon","http://www.cbssports.com/nhl/players/player/gamelogs/2014/1280586","LW"]
["CHI","http://www.cbssports.com/nhl/teams/page/CHI","Patrick Sharp","http://www.cbssports.com/nhl/players/player/gamelogs/2014/369012","LW"]
["STL","http://www.cbssports.com/nhl/teams/page/STL","Patrik Berglund","http://www.cbssports.com/nhl/players/player/gamelogs/2014/1282417","C"]
["NJ","http://www.cbssports.com/nhl/teams/page/NJ","Patrik Elias","http://www.cbssports.com/nhl/players/player/gamelogs/2014/19433","LW"]
["CGY","http://www.cbssports.com/nhl/teams/page/CGY","Paul Byron","http://www.cbssports.com/nhl/players/player/gamelogs/2014/1282169","C"]
["NSH","http://www.cbssports.com/nhl/teams/page/NSH","Paul Gaustad","http://www.cbssports.com/nhl/players/player/gamelogs/2014/204545","C"]
["PIT","http://www.cbssports.com/nhl/teams/page/PIT","Paul Martin","http://www.cbssports.com/nhl/players/player/gamelogs/2014/435220","D"]
["STL","http://www.cbssports.com/nhl/teams/page/STL","Paul Stastny","http://www.cbssports.com/nhl/players/player/gamelogs/2014/1114920","C"]
["DET","http://www.cbssports.com/nhl/teams/page/DET","Pavel Datsyuk","http://www.cbssports.com/nhl/players/player/gamelogs/2014/274244","C"]
["TOR","http://www.cbssports.com/nhl/teams/page/TOR","Peter Holland","http://www.cbssports.com/nhl/players/player/gamelogs/2014/1707560","C"]
["TOR","http://www.cbssports.com/nhl/teams/page/TOR","Phil Kessel","http://www.cbssports.com/nhl/players/player/gamelogs/2014/1133422","RW"]
["PHI","http://www.cbssports.com/nhl/teams/page/PHI","Pierre-Edouard Bellemare","http://www.cbssports.com/nhl/players/player/gamelogs/2014/2147108","RW"]
["PHI","http://www.cbssports.com/nhl/teams/page/PHI","R.J. Umberger","http://www.cbssports.com/nhl/players/player/gamelogs/2014/564980","LW"]
["VAN","http://www.cbssports.com/nhl/teams/page/VAN","Radim Vrbata","http://www.cbssports.com/nhl/players/player/gamelogs/2014/151231","RW"]
["BUF","http://www.cbssports.com/nhl/teams/page/BUF","Rasmus Ristolainen","http://www.cbssports.com/nhl/players/player/gamelogs/2014/2076038","D"]
["BOS","http://www.cbssports.com/nhl/teams/page/BOS","Reilly Smith","http://www.cbssports.com/nhl/players/player/gamelogs/2014/1960631","RW"]
["ANA","http://www.cbssports.com/nhl/teams/page/ANA","Rene Bourque","http://www.cbssports.com/nhl/players/player/gamelogs/2014/566090","LW"]
["TOR","http://www.cbssports.com/nhl/teams/page/TOR","Richard Panik","http://www.cbssports.com/nhl/players/player/gamelogs/2014/1707443","RW"]
["NYR","http://www.cbssports.com/nhl/teams/page/NYR","Rick Nash","http://www.cbssports.com/nhl/players/player/gamelogs/2014/346970","LW"]
["ANA","http://www.cbssports.com/nhl/teams/page/ANA","Rickard Rakell","http://www.cbssports.com/nhl/players/player/gamelogs/2014/1899132","C"]
["CAR","http://www.cbssports.com/nhl/teams/page/CAR","Riley Nash","http://www.cbssports.com/nhl/players/player/gamelogs/2014/1770957","C"]
["DET","http://www.cbssports.com/nhl/teams/page/DET","Riley Sheahan","http://www.cbssports.com/nhl/players/player/gamelogs/2014/1964559","C"]
["EDM","http://www.cbssports.com/nhl/teams/page/EDM","Rob Klinkhammer","http://www.cbssports.com/nhl/players/player/gamelogs/2014/1708032","LW"]
["NSH","http://www.cbssports.com/nhl/teams/page/NSH","Roman Josi","http://www.cbssports.com/nhl/players/player/gamelogs/2014/1770931","D"]
["TOR","http://www.cbssports.com/nhl/teams/page/TOR","Roman Polak","http://www.cbssports.com/nhl/players/player/gamelogs/2014/1134147","D"]
["TB","http://www.cbssports.com/nhl/teams/page/TB","Ryan Callahan","http://www.cbssports.com/nhl/players/player/gamelogs/2014/566093","RW"]
["MIN","http://www.cbssports.com/nhl/teams/page/MIN","Ryan Carter","http://www.cbssports.com/nhl/players/player/gamelogs/2014/1137120","C"]
["NSH","http://www.cbssports.com/nhl/teams/page/NSH","Ryan Ellis","http://www.cbssports.com/nhl/players/player/gamelogs/2014/1707401","D"]
["DAL","http://www.cbssports.com/nhl/teams/page/DAL","Ryan Garbutt","http://www.cbssports.com/nhl/players/player/gamelogs/2014/1897665","LW"]
["ANA","http://www.cbssports.com/nhl/teams/page/ANA","Ryan Getzlaf","http://www.cbssports.com/nhl/players/player/gamelogs/2014/433595","C"]
["CLB","http://www.cbssports.com/nhl/teams/page/CLB","Ryan Johansen","http://www.cbssports.com/nhl/players/player/gamelogs/2014/1769716","C"]
["ANA","http://www.cbssports.com/nhl/teams/page/ANA","Ryan Kesler","http://www.cbssports.com/nhl/players/player/gamelogs/2014/433666","C"]
["NYR","http://www.cbssports.com/nhl/teams/page/NYR","Ryan McDonagh","http://www.cbssports.com/nhl/players/player/gamelogs/2014/1757711","D"]
["CAR","http://www.cbssports.com/nhl/teams/page/CAR","Ryan Murphy","http://www.cbssports.com/nhl/players/player/gamelogs/2014/1897735","D"]
["EDM","http://www.cbssports.com/nhl/teams/page/EDM","Ryan Nugent-Hopkins","http://www.cbssports.com/nhl/players/player/gamelogs/2014/1899125","C"]
["COL","http://www.cbssports.com/nhl/teams/page/COL","Ryan O'Reilly","http://www.cbssports.com/nhl/players/player/gamelogs/2014/1707441","C"]
["STL","http://www.cbssports.com/nhl/teams/page/STL","Ryan Reaves","http://www.cbssports.com/nhl/players/player/gamelogs/2014/1639467","RW"]
["VAN","http://www.cbssports.com/nhl/teams/page/VAN","Ryan Stanton","http://www.cbssports.com/nhl/players/player/gamelogs/2014/1899141","D"]
["NYI","http://www.cbssports.com/nhl/teams/page/NYI","Ryan Strome","http://www.cbssports.com/nhl/players/player/gamelogs/2014/1897797","C"]
["MIN","http://www.cbssports.com/nhl/teams/page/MIN","Ryan Suter","http://www.cbssports.com/nhl/players/player/gamelogs/2014/565842","D"]
["ARI","http://www.cbssports.com/nhl/teams/page/ARI","Sam Gagner","http://www.cbssports.com/nhl/players/player/gamelogs/2014/1280567","C"]
["ANA","http://www.cbssports.com/nhl/teams/page/ANA","Sami Vatanen","http://www.cbssports.com/nhl/players/player/gamelogs/2014/2039465","D"]
["NJ","http://www.cbssports.com/nhl/teams/page/NJ","Scott Gomez","http://www.cbssports.com/nhl/players/player/gamelogs/2014/20431","C"]
["CLB","http://www.cbssports.com/nhl/teams/page/CLB","Scott Hartnell","http://www.cbssports.com/nhl/players/player/gamelogs/2014/204569","LW"]
["FLA","http://www.cbssports.com/nhl/teams/page/FLA","Scottie Upshall","http://www.cbssports.com/nhl/players/player/gamelogs/2014/347857","RW"]
["FLA","http://www.cbssports.com/nhl/teams/page/FLA","Sean Bergenheim","http://www.cbssports.com/nhl/players/player/gamelogs/2014/435102","LW"]
["PHI","http://www.cbssports.com/nhl/teams/page/PHI","Sean Couturier","http://www.cbssports.com/nhl/players/player/gamelogs/2014/1897634","C"]
["CGY","http://www.cbssports.com/nhl/teams/page/CGY","Sean Monahan","http://www.cbssports.com/nhl/players/player/gamelogs/2014/2076030","C"]
["MON","http://www.cbssports.com/nhl/teams/page/MON","Sergei Gonchar","http://www.cbssports.com/nhl/players/player/gamelogs/2014/19421","D"]
["BOS","http://www.cbssports.com/nhl/teams/page/BOS","Seth Griffith","http://www.cbssports.com/nhl/players/player/gamelogs/2014/2094401","C"]
["NSH","http://www.cbssports.com/nhl/teams/page/NSH","Seth Jones","http://www.cbssports.com/nhl/players/player/gamelogs/2014/2076023","D"]
["ARI","http://www.cbssports.com/nhl/teams/page/ARI","Shane Doan","http://www.cbssports.com/nhl/players/player/gamelogs/2014/19368","RW"]
["DAL","http://www.cbssports.com/nhl/teams/page/DAL","Shawn Horcoff","http://www.cbssports.com/nhl/players/player/gamelogs/2014/204580","C"]
["VAN","http://www.cbssports.com/nhl/teams/page/VAN","Shawn Matthias","http://www.cbssports.com/nhl/players/player/gamelogs/2014/1133476","C"]
["NSH","http://www.cbssports.com/nhl/teams/page/NSH","Shea Weber","http://www.cbssports.com/nhl/players/player/gamelogs/2014/433220","D"]
["PIT","http://www.cbssports.com/nhl/teams/page/PIT","Sidney Crosby","http://www.cbssports.com/nhl/players/player/gamelogs/2014/559301","C"]
["PIT","http://www.cbssports.com/nhl/teams/page/PIT","Simon Despres","http://www.cbssports.com/nhl/players/player/gamelogs/2014/1707759","D"]
["DET","http://www.cbssports.com/nhl/teams/page/DET","Stephen Weiss","http://www.cbssports.com/nhl/players/player/gamelogs/2014/273566","C"]
["NJ","http://www.cbssports.com/nhl/teams/page/NJ","Steve Bernier","http://www.cbssports.com/nhl/players/player/gamelogs/2014/433203","RW"]
["PIT","http://www.cbssports.com/nhl/teams/page/PIT","Steve Downie","http://www.cbssports.com/nhl/players/player/gamelogs/2014/1134113","RW"]
["STL","http://www.cbssports.com/nhl/teams/page/STL","Steve Ott","http://www.cbssports.com/nhl/players/player/gamelogs/2014/204707","C"]
["TB","http://www.cbssports.com/nhl/teams/page/TB","Steven Stamkos","http://www.cbssports.com/nhl/players/player/gamelogs/2014/1628816","C"]
["CGY","http://www.cbssports.com/nhl/teams/page/CGY","T.J. Brodie","http://www.cbssports.com/nhl/players/player/gamelogs/2014/1639357","D"]
["STL","http://www.cbssports.com/nhl/teams/page/STL","T.J. Oshie","http://www.cbssports.com/nhl/players/player/gamelogs/2014/1628812","RW"]
["LA","http://www.cbssports.com/nhl/teams/page/LA","Tanner Pearson","http://www.cbssports.com/nhl/players/player/gamelogs/2014/2000670","LW"]
["NSH","http://www.cbssports.com/nhl/teams/page/NSH","Taylor Beck","http://www.cbssports.com/nhl/players/player/gamelogs/2014/1707382","LW"]
["EDM","http://www.cbssports.com/nhl/teams/page/EDM","Taylor Hall","http://www.cbssports.com/nhl/players/player/gamelogs/2014/1757713","LW"]
["EDM","http://www.cbssports.com/nhl/teams/page/EDM","Teddy Purcell","http://www.cbssports.com/nhl/players/player/gamelogs/2014/1283869","RW"]
["NYI","http://www.cbssports.com/nhl/teams/page/NYI","Thomas Hickey","http://www.cbssports.com/nhl/players/player/gamelogs/2014/1280571","D"]
["MIN","http://www.cbssports.com/nhl/teams/page/MIN","Thomas Vanek","http://www.cbssports.com/nhl/players/player/gamelogs/2014/565429","LW"]
["CAR","http://www.cbssports.com/nhl/teams/page/CAR","Tim Gleason","http://www.cbssports.com/nhl/players/player/gamelogs/2014/273526","D"]
["WPG","http://www.cbssports.com/nhl/teams/page/WPG","Tobias Enstrom","http://www.cbssports.com/nhl/players/player/gamelogs/2014/1286081","D"]
["ARI","http://www.cbssports.com/nhl/teams/page/ARI","Tobias Rieder","http://www.cbssports.com/nhl/players/player/gamelogs/2014/2094635","C"]
["MON","http://www.cbssports.com/nhl/teams/page/MON","Tom Gilbert","http://www.cbssports.com/nhl/players/player/gamelogs/2014/1134116","D"]
["WAS","http://www.cbssports.com/nhl/teams/page/WAS","Tom Wilson","http://www.cbssports.com/nhl/players/player/gamelogs/2014/2000681","RW"]
["FLA","http://www.cbssports.com/nhl/teams/page/FLA","Tomas Fleischmann","http://www.cbssports.com/nhl/players/player/gamelogs/2014/369707","LW"]
["SJ","http://www.cbssports.com/nhl/teams/page/SJ","Tomas Hertl","http://www.cbssports.com/nhl/players/player/gamelogs/2014/2000661","C"]
["DET","http://www.cbssports.com/nhl/teams/page/DET","Tomas Jurco","http://www.cbssports.com/nhl/players/player/gamelogs/2014/1897693","RW"]
["FLA","http://www.cbssports.com/nhl/teams/page/FLA","Tomas Kopecky","http://www.cbssports.com/nhl/players/player/gamelogs/2014/204606","LW"]
["MON","http://www.cbssports.com/nhl/teams/page/MON","Tomas Plekanec","http://www.cbssports.com/nhl/players/player/gamelogs/2014/369005","C"]
["DET","http://www.cbssports.com/nhl/teams/page/DET","Tomas Tatar","http://www.cbssports.com/nhl/players/player/gamelogs/2014/1707461","LW"]
["SJ","http://www.cbssports.com/nhl/teams/page/SJ","Tommy Wingels","http://www.cbssports.com/nhl/players/player/gamelogs/2014/1771015","C"]
["BOS","http://www.cbssports.com/nhl/teams/page/BOS","Torey Krug","http://www.cbssports.com/nhl/players/player/gamelogs/2014/1960399","D"]
["BUF","http://www.cbssports.com/nhl/teams/page/BUF","Torrey Mitchell","http://www.cbssports.com/nhl/players/player/gamelogs/2014/1285575","C"]
["NYI","http://www.cbssports.com/nhl/teams/page/NYI","Travis Hamonic","http://www.cbssports.com/nhl/players/player/gamelogs/2014/1639403","D"]
["NJ","http://www.cbssports.com/nhl/teams/page/NJ","Travis Zajac","http://www.cbssports.com/nhl/players/player/gamelogs/2014/1134161","C"]
["DAL","http://www.cbssports.com/nhl/teams/page/DAL","Trevor Daley","http://www.cbssports.com/nhl/players/player/gamelogs/2014/346966","D"]
["LA","http://www.cbssports.com/nhl/teams/page/LA","Trevor Lewis","http://www.cbssports.com/nhl/players/player/gamelogs/2014/1133473","C"]
["WAS","http://www.cbssports.com/nhl/teams/page/WAS","Troy Brouwer","http://www.cbssports.com/nhl/players/player/gamelogs/2014/565363","RW"]
["NJ","http://www.cbssports.com/nhl/teams/page/NJ","Tuomo Ruutu","http://www.cbssports.com/nhl/players/player/gamelogs/2014/435259","LW"]
["TOR","http://www.cbssports.com/nhl/teams/page/TOR","Tyler Bozak","http://www.cbssports.com/nhl/players/player/gamelogs/2014/1707849","C"]
["BUF","http://www.cbssports.com/nhl/teams/page/BUF","Tyler Ennis","http://www.cbssports.com/nhl/players/player/gamelogs/2014/1639390","LW"]
["TB","http://www.cbssports.com/nhl/teams/page/TB","Tyler Johnson","http://www.cbssports.com/nhl/players/player/gamelogs/2014/1903257","C"]
["SJ","http://www.cbssports.com/nhl/teams/page/SJ","Tyler Kennedy","http://www.cbssports.com/nhl/players/player/gamelogs/2014/566022","C"]
["BUF","http://www.cbssports.com/nhl/teams/page/BUF","Tyler Myers","http://www.cbssports.com/nhl/players/player/gamelogs/2014/1639453","D"]
["DAL","http://www.cbssports.com/nhl/teams/page/DAL","Tyler Seguin","http://www.cbssports.com/nhl/players/player/gamelogs/2014/1757712","C"]
["LA","http://www.cbssports.com/nhl/teams/page/LA","Tyler Toffoli","http://www.cbssports.com/nhl/players/player/gamelogs/2014/1771005","C"]
["COL","http://www.cbssports.com/nhl/teams/page/COL","Tyson Barrie","http://www.cbssports.com/nhl/players/player/gamelogs/2014/1707381","D"]
["TB","http://www.cbssports.com/nhl/teams/page/TB","Valtteri Filppula","http://www.cbssports.com/nhl/players/player/gamelogs/2014/566179","C"]
["DAL","http://www.cbssports.com/nhl/teams/page/DAL","Vernon Fiddler","http://www.cbssports.com/nhl/players/player/gamelogs/2014/371777","C"]
["NSH","http://www.cbssports.com/nhl/teams/page/NSH","Victor Bartley","http://www.cbssports.com/nhl/players/player/gamelogs/2014/1897603","D"]
["TB","http://www.cbssports.com/nhl/teams/page/TB","Victor Hedman","http://www.cbssports.com/nhl/players/player/gamelogs/2014/1685405","D"]
["CAR","http://www.cbssports.com/nhl/teams/page/CAR","Victor Rask","http://www.cbssports.com/nhl/players/player/gamelogs/2014/1897763","C"]
["PHI","http://www.cbssports.com/nhl/teams/page/PHI","Vincent Lecavalier","http://www.cbssports.com/nhl/players/player/gamelogs/2014/20464","C"]
["FLA","http://www.cbssports.com/nhl/teams/page/FLA","Vincent Trocheck","http://www.cbssports.com/nhl/players/player/gamelogs/2014/1897806","C"]
["STL","http://www.cbssports.com/nhl/teams/page/STL","Vladimir Tarasenko","http://www.cbssports.com/nhl/players/player/gamelogs/2014/1778768","RW"]
["PHI","http://www.cbssports.com/nhl/teams/page/PHI","Wayne Simmonds","http://www.cbssports.com/nhl/players/player/gamelogs/2014/1280606","RW"]
["VAN","http://www.cbssports.com/nhl/teams/page/VAN","Yannick Weber","http://www.cbssports.com/nhl/players/player/gamelogs/2014/1282459","D"]
["WPG","http://www.cbssports.com/nhl/teams/page/WPG","Zach Bogosian","http://www.cbssports.com/nhl/players/player/gamelogs/2014/1628804","D"]
["MIN","http://www.cbssports.com/nhl/teams/page/MIN","Zach Parise","http://www.cbssports.com/nhl/players/player/gamelogs/2014/557239","LW"]
["COL","http://www.cbssports.com/nhl/teams/page/COL","Zach Redmond","http://www.cbssports.com/nhl/players/player/gamelogs/2014/1897767","D"]
["VAN","http://www.cbssports.com/nhl/teams/page/VAN","Zack Kassian","http://www.cbssports.com/nhl/players/player/gamelogs/2014/1707418","RW"]
["ARI","http://www.cbssports.com/nhl/teams/page/ARI","Zbynek Michalek","http://www.cbssports.com/nhl/players/player/gamelogs/2014/369001","D"]
["BOS","http://www.cbssports.com/nhl/teams/page/BOS","Zdeno Chara","http://www.cbssports.com/nhl/players/player/gamelogs/2014/19791","D"]
["BUF","http://www.cbssports.com/nhl/teams/page/BUF","Zemgus Girgensons","http://www.cbssports.com/nhl/players/player/gamelogs/2014/2000659","C"]

{"sheet":"Sheet4","index":2,"n_rows":120,"n_cols":21,"rows_kept":120,"cut":false,"hidden":false,"merged":[]}
[null,null,null,null,null,null,null,null,null,null,null,null,null,null,null,null,null,null,"ESTOI",null,{"$f":"Sheet3!G2","v":"Tyler Johnson"}]
["2014-15 Regular Season Game Log"]
["October","Opponent","Result","G","A","PTS","+ / -","SOG","SH%","PPG","PPA","SHG","SHA","GWG","PIM","TOI","PTOI","STOI",{"$f":"P3-(Q3+R3)","v":{"$error":"#VALUE!"}}]
["2015-10-09","vs FLA","W 3-2 (OT)",1,0,1,0,4,25,1,0,0,0,0,0,0.7319444444444444,"04:41:00",6.5277777777777782E-2,{"$f":"P4-(Q4+R4)","v":0.47152777777777771}]
["2015-10-11","vs OTT","L 3-2 (SO)",0,0,0,0,1,0,0,0,0,0,0,0,0.76180555555555562,"01:17:00",9.8611111111111108E-2,0.60972222222222228]
["2015-10-13","vs MON","W 7-1",0,0,0,0,1,0,0,0,0,0,0,0,0.6166666666666667,"00:00:00",0.13541666666666666,0.48125000000000007]
["2015-10-14","vs NJ","L 2-1",0,1,1,1,3,0,0,0,0,0,0,0,0.67638888888888893,"01:30:00",9.0972222222222218E-2,0.5229166666666667]
["2015-10-18","@ VAN","W 4-2",0,1,1,0,3,0,0,0,0,0,0,0,0.77986111111111101,"02:08:00",0.14444444444444446,0.54652777777777772]
["2015-10-20","@ EDM","L 3-2",0,1,1,0,4,0,0,0,0,0,0,0,0.76736111111111116,"01:44:00",6.1805555555555558E-2,0.6333333333333333]
["2015-10-21","@ CGY","W 2-1 (OT)",0,1,1,1,4,0,0,0,0,0,0,0,0.73402777777777783,"00:00:00",3.8194444444444441E-2,0.69583333333333341]
["2015-10-24","@ WPG","W 4-2",0,2,2,2,2,0,0,0,0,0,0,0,0.84861111111111109,"03:24:00",0.12013888888888889,0.58680555555555558]
["2015-10-25","@ MIN","L 7-2",0,1,1,-1,4,0,0,0,0,0,0,0,0.73541666666666661,"03:35:00",3.6111111111111115E-2,0.54999999999999993]
["2015-10-28","vs ARI","W 7-3",0,4,4,2,3,0,0,1,0,0,0,0,0.68055555555555547,"01:58:00",0,0.59861111111111098]
["2015-10-30","vs PHI","W 4-3",0,0,0,0,3,0,0,0,0,0,0,0,0.68888888888888899,"02:21:00",7.6388888888888895E-2,0.51458333333333339]
["2015-11-01","vs WAS","W 4-3",0,2,2,2,3,0,0,0,0,0,0,0,0.69513888888888886,"01:30:00",4.3750000000000004E-2,0.5888888888888888]
["2015-11-06","vs CGY","W 5-2",1,0,1,2,3,33.299999999999997,0,0,0,0,0,2,0.77083333333333337,"00:58:00",0.1125,0.61805555555555558]
["2015-11-08","@ CLB","W 7-4",2,0,2,0,6,33.299999999999997,1,0,0,0,0,0,0.71736111111111101,"00:34:00",0.1013888888888889,0.59236111111111101]
["2015-11-09","@ DET","W 4-3 (SO)",1,0,1,1,3,33.299999999999997,0,0,0,0,0,0,0.70763888888888893,"02:48:00",3.888888888888889E-2,0.55208333333333337]
["2015-11-11","@ CHI","L 3-2 (SO)",0,0,0,-1,1,0,0,0,0,0,0,0,0.67013888888888884,"01:51:00",0.24236111111111111,0.35069444444444442]
["2015-11-13","vs SJ","L 2-1",0,0,0,-1,1,0,0,0,0,0,0,2,0.80694444444444446,"02:36:00",6.7361111111111108E-2,0.63125000000000009]
["2015-11-15","vs NYI","W 5-2",1,0,1,1,2,50,0,0,0,0,0,0,0.68055555555555547,"01:48:00",8.4722222222222213E-2,0.52083333333333326]
["2015-11-17","@ NYR","W 5-1",0,2,2,2,1,0,0,0,0,0,0,0,0.67222222222222217,"01:26:00",3.5416666666666666E-2,0.57708333333333328]
["2015-11-18","@ NYI","L 5-2",0,0,0,-1,3,0,0,0,0,0,0,0,0.70000000000000007,"02:02:00",0.1013888888888889,0.51388888888888895]
["2015-11-20","@ TOR","L 5-2",0,0,0,-1,0,0,0,0,0,0,0,0,0.82361111111111107,"02:40:00",0.10625,0.60624999999999996]
["2015-11-22","vs MIN","W 2-1",0,0,0,0,4,0,0,0,0,0,0,2,0.76527777777777783,"00:08:00",4.9305555555555554E-2,0.7104166666666667]
["2015-11-26","vs NYR","W 4-3",0,1,1,0,2,0,0,0,0,0,0,0,0.75416666666666676,"00:58:00",4.8611111111111112E-2,0.66527777777777786]
["2015-11-29","vs OTT","W 4-1",0,1,1,1,0,0,0,1,0,0,0,0,0.64722222222222225,"02:42:00",4.7916666666666663E-2,0.4868055555555556]
["2015-12-01","@ NYR","W 6-3",2,1,3,4,5,40,0,0,0,0,0,0,0.69791666666666663,"02:12:00",6.25E-2,0.54374999999999996]
["2015-12-02","@ BUF","L 2-1 (SO)",0,1,1,1,3,0,0,0,0,0,0,0,0.69444444444444453,"00:47:00",6.25E-2,0.59930555555555565]
["2015-12-04","vs BUF","W 5-0",0,1,1,1,2,0,0,0,0,0,0,2,0.75069444444444444,"02:46:00",5.347222222222222E-2,0.58194444444444449]
["2015-12-06","vs CLB","L 3-1",0,0,0,-1,2,0,0,0,0,0,0,0,0.5756944444444444,"01:49:00",6.805555555555555E-2,0.43194444444444441]
["2015-12-09","vs WAS","L 5-3",0,1,1,0,3,0,0,0,0,0,0,0,0.68888888888888899,"02:03:00",5.7638888888888885E-2,0.54583333333333339]
["2015-12-11","vs CAR","W 2-1",0,0,0,1,2,0,0,0,0,0,0,0,0.71527777777777779,"01:32:00",9.3055555555555558E-2,0.55833333333333335]
["2015-12-13","@ WAS","L 4-2",1,0,1,1,3,33.299999999999997,0,0,0,0,0,0,0.7729166666666667,"03:45:00",0.12152777777777778,0.49513888888888891]
["2015-12-15","@ PIT","L 4-2",0,1,1,0,2,0,0,1,0,0,0,0,0.78749999999999998,"01:22:00",0.19791666666666666,0.53263888888888888]
["2015-12-16","@ PHI","W 3-1",1,1,2,2,4,25,0,0,0,0,1,0,0.8027777777777777,"03:51:00",7.6388888888888895E-2,0.5659722222222221]
["2015-12-20","@ NYI","L 3-1",0,1,1,1,1,0,0,0,0,0,0,0,0.72152777777777777,"00:52:00",9.930555555555555E-2,0.58611111111111114]
["2015-12-23","vs PIT","W 4-3",3,0,3,3,4,75,0,0,0,0,1,2,0.69652777777777775,"02:18:00",0,0.60069444444444442]
["2015-12-27","vs CAR","W 2-1",0,0,0,1,4,0,0,0,0,0,0,0,0.72986111111111107,"03:36:00",5.1388888888888894E-2,0.52847222222222223]
["2015-12-29","vs TOR","W 3-2",0,0,0,-1,2,0,0,0,0,0,0,0,0.65416666666666667,"02:22:00",5.4166666666666669E-2,0.50138888888888888]
["2015-12-31","@ BUF","W 5-1",0,3,3,4,1,0,0,1,0,0,0,0,0.6743055555555556,"02:57:00",6.3888888888888884E-2,0.48750000000000004]
["2015-01-02","@ PIT","L 6-3",0,1,1,-1,2,0,0,0,0,0,0,0,0.73333333333333339,"02:53:00",5.2777777777777778E-2,0.56041666666666679]
["2015-01-04","@ OTT","W 4-2",2,0,2,0,6,33.299999999999997,1,0,0,0,0,0,0.88124999999999998,"07:13:00",0.13541666666666666,0.44513888888888886]
["2015-01-06","@ MON","W 4-2",2,0,2,0,6,33.299999999999997,2,0,0,0,0,0,0.82847222222222217,"05:39:00",6.6666666666666666E-2,0.5263888888888888]
["2015-01-09","vs BUF","W 2-1",0,0,0,0,4,0,0,0,0,0,0,0,0.81527777777777777,"03:49:00",7.9166666666666663E-2,0.57708333333333339]
["2015-01-12","@ PHI","L 7-3",0,1,1,-1,2,0,0,1,0,0,0,2,0.39166666666666666,"00:57:00",3.6111111111111115E-2,0.31597222222222221]
["2015-01-15","vs EDM","W 3-2",0,2,2,1,3,0,0,0,0,0,0,0,0.73263888888888884,"00:56:00",7.9166666666666663E-2,0.61458333333333326]
["2015-01-17","vs COL","W 3-2 (SO)",0,0,0,0,2,0,0,0,0,0,0,0,0.77013888888888893,"00:53:00",8.4027777777777771E-2,0.64930555555555558]
["2015-01-20","vs VAN","W 4-1",0,0,0,0,1,0,0,0,0,0,0,0,0.6958333333333333,"04:09:00",0.10347222222222223,0.4194444444444444]
["2015-01-27","@ CAR","L 4-2",0,0,0,-1,2,0,0,0,0,0,0,0,0.72638888888888886,"02:55:00",0.1013888888888889,0.50347222222222221]
["2015-01-29","vs DET","W 5-1",0,1,1,1,3,0,0,0,0,0,0,0,0.73749999999999993,"00:00:00",7.4305555555555555E-2,0.66319444444444442]
["2015-01-31","vs CLB","W 3-1",0,0,0,0,5,0,0,0,0,0,0,0,0.65138888888888891,"03:54:00",6.9444444444444447E-4,0.48819444444444449]
["2015-02-03","@ STL","L 2-1 (OT)",0,0,0,-1,2,0,0,0,0,0,0,0,0.63541666666666663,"01:32:00",4.1666666666666664E-2,0.52986111111111112]
["2015-02-05","@ DAL","W 5-3",2,0,2,2,5,40,1,0,0,0,1,0,0.77569444444444446,"01:53:00",0.11666666666666665,0.5805555555555556]
["2015-02-07","vs LA","L 4-2",0,0,0,-1,4,0,0,0,0,0,0,0,0.68888888888888899,"01:30:00",7.2222222222222229E-2,0.5541666666666667]
["2015-02-08","vs ANA","W 5-3",0,1,1,1,2,0,0,0,0,0,0,0,0.78402777777777777,"03:16:00",0.11666666666666665,0.53125]
["2015-02-10","@ NSH","L 3-2 (OT)",0,1,1,0,3,0,0,0,0,0,0,0,0.87152777777777779,"01:47:00",6.5972222222222224E-2,0.73124999999999996]
["2015-02-12","vs STL","L 6-3",1,0,1,-3,1,100,1,0,0,0,0,0,0.72777777777777775,"01:41:00",5.7638888888888885E-2,0.6]
["2015-02-15","@ SJ","W 5-2",0,0,0,1,2,0,0,0,0,0,0,0,0.76736111111111116,"00:51:00",9.0972222222222218E-2,0.64097222222222228]
["2015-02-16","@ LA","L 3-2",1,0,1,1,2,50,0,0,0,0,0,0,0.8222222222222223,"01:46:00",0.12083333333333333,0.62777777777777788]
["2015-02-18","@ ANA","W 4-1",1,0,1,2,2,50,0,0,0,0,1,2,0.57152777777777775,"01:35:00",2.7083333333333334E-2,0.47847222222222219]
["2015-02-21","@ ARI","W 4-2",0,0,0,1,2,0,0,0,0,0,0,0,0.80694444444444446,"04:31:00",6.6666666666666666E-2,0.55208333333333337]
["2015-02-22","@ COL","L 5-4",1,2,3,1,1,100,0,0,0,0,0,0,0.6743055555555556,"02:54:00",4.8611111111111112E-3,0.54861111111111116]
["2015-02-27","vs CHI","W 4-0",0,1,1,0,0,0,0,1,0,0,0,0,0.64374999999999993,"04:33:00",8.5416666666666655E-2,0.36874999999999997]
["2015-03-01","@ FLA","L 4-3",1,0,1,0,5,20,0,0,0,0,0,0,0.68472222222222223,"00:52:00",8.5416666666666655E-2,0.56319444444444444]
["2015-03-03","vs BUF","W 3-0",0,1,1,0,1,0,0,1,0,0,0,0,0.69236111111111109,"01:11:00",1.3888888888888888E-2,0.62916666666666665]
["2015-03-05","vs TOR","W 4-2",0,1,1,1,2,0,0,0,0,0,0,0,0.63958333333333328,"02:05:00",3.9583333333333331E-2,0.5131944444444444]
["2015-03-07","vs DAL","W 5-4",0,1,1,0,0,0,0,0,0,0,0,0,0.60486111111111118,"03:38:00",0,{"$f":"P68-(Q68+R68)","v":0.45347222222222228}]
[null,null,null,null,null,null,null,null,null,null,null,null,null,null,null,null,null,null,0]
["2014-15 Regular Season Totals",null,null,24,40,64,31,169,14.2,7,7,0,0,4,14,46.75,6.072222222222222,4.8277777777777775,35.85]
[null,null,null,null,null,null,null,null,null,null,null,null,null,null,null,null,null,null,0]
[null,null,null,null,null,null,null,null,null,null,null,null,null,null,null,null,null,null,0]
["Visit other CBS Interactive Sites",null,null,null,null,null,null,null,null,null,null,null,null,null,null,null,null,null,0]
["CBS Cares | CBS Films | CBS Interactive | CBS Radio | CBS.com | CBSNews.com | CBSSports.com | CHOW | Clicker | CNET | College Network | GameSpot | Help.com | Last.fm | MaxPreps | Metacritic.com | MetroLyrics | Moneywatch | mySimon | Radio.com | Search.com | Shopper.com | Showtime | SmartPlanet | TechRepublic | TV.com | TVGuide.com | UrbanBaby | ZDNet",null,null,null,null,null,null,null,null,null,null,null,null,null,null,null,null,null,0]
["About CBSSports.com | Advertise | Site Map | Development Center | College Network | Closed Captioning © 2015 CBS Interactive. All rights reserved. | Privacy Policy | Ad Choice | Terms of Use | Mobile User Agreement",null,null,null,null,null,null,null,null,null,null,null,null,null,null,null,null,null,0]
[null,null,null,null,null,null,null,null,null,null,null,null,null,null,null,null,null,null,0]
["CBS Sports is a registered trademark of CBS Broadcasting Inc. SportsLine is a registered service mark of SportsLine.com, Inc.",null,null,null,null,null,null,null,null,null,null,null,null,null,null,null,null,null,0]
[null,null,null,null,null,null,null,null,null,null,null,null,null,null,null,null,null,null,0]
[null,null,null,null,null,null,null,null,null,null,null,null,null,null,null,null,null,null,0]
[null,null,null,null,null,null,null,null,null,null,null,null,null,null,null,null,null,null,0]
[null,null,null,null,null,null,null,null,null,null,null,null,null,null,null,null,null,null,0]
[null,null,null,null,null,null,null,null,null,null,null,null,null,null,null,null,null,null,0]
[null,null,null,null,null,null,null,null,null,null,null,null,null,null,null,null,null,null,0]
[null,null,null,null,null,null,null,null,null,null,null,null,null,null,null,null,null,null,0]
[null,null,null,null,null,null,null,null,null,null,null,null,null,null,null,null,null,null,0]
[null,null,null,null,null,null,null,null,null,null,null,null,null,null,null,null,null,null,0]
[null,null,null,null,null,null,null,null,null,null,null,null,null,null,null,null,null,null,0]
[null,null,null,null,null,null,null,null,null,null,null,null,null,null,null,null,null,null,0]
[null,null,null,null,null,null,null,null,null,null,null,null,null,null,null,null,null,null,0]
[null,null,null,null,null,null,null,null,null,null,null,null,null,null,null,null,null,null,0]
[null,null,null,null,null,null,null,null,null,null,null,null,null,null,null,null,null,null,0]
[null,null,null,null,null,null,null,null,null,null,null,null,null,null,null,null,null,null,0]
[null,null,null,null,null,null,null,null,null,null,null,null,null,null,null,null,null,null,0]
[null,null,null,null,null,null,null,null,null,null,null,null,null,null,null,null,null,null,0]
[null,null,null,null,null,null,null,null,null,null,null,null,null,null,null,null,null,null,0]
[null,null,null,null,null,null,null,null,null,null,null,null,null,null,null,null,null,null,0]
[null,null,null,null,null,null,null,null,null,null,null,null,null,null,null,null,null,null,0]
[null,null,null,null,null,null,null,null,null,null,null,null,null,null,null,null,null,null,0]
[null,null,null,null,null,null,null,null,null,null,null,null,null,null,null,null,null,null,0]
[null,null,null,null,null,null,null,null,null,null,null,null,null,null,null,null,null,null,0]
[null,null,null,null,null,null,null,null,null,null,null,null,null,null,null,null,null,null,0]
[null,null,null,null,null,null,null,null,null,null,null,null,null,null,null,null,null,null,0]
[null,null,null,null,null,null,null,null,null,null,null,null,null,null,null,null,null,null,0]
[null,null,null,null,null,null,null,null,null,null,null,null,null,null,null,null,null,null,0]
[null,null,null,null,null,null,null,null,null,null,null,null,null,null,null,null,null,null,0]
[null,null,null,null,null,null,null,null,null,null,null,null,null,null,null,null,null,null,0]
[null,null,null,null,null,null,null,null,null,null,null,null,null,null,null,null,null,null,0]
[null,null,null,null,null,null,null,null,null,null,null,null,null,null,null,null,null,null,0]
[null,null,null,null,null,null,null,null,null,null,null,null,null,null,null,null,null,null,0]
[null,null,null,null,null,null,null,null,null,null,null,null,null,null,null,null,null,null,0]
[null,null,null,null,null,null,null,null,null,null,null,null,null,null,null,null,null,null,0]
[null,null,null,null,null,null,null,null,null,null,null,null,null,null,null,null,null,null,0]
[null,null,null,null,null,null,null,null,null,null,null,null,null,null,null,null,null,null,0]
[null,null,null,null,null,null,null,null,null,null,null,null,null,null,null,null,null,null,0]
[null,null,null,null,null,null,null,null,null,null,null,null,null,null,null,null,null,null,0]
[null,null,null,null,null,null,null,null,null,null,null,null,null,null,null,null,null,null,0]
[null,null,null,null,null,null,null,null,null,null,null,null,null,null,null,null,null,null,0]
[null,null,null,null,null,null,null,null,null,null,null,null,null,null,null,null,null,null,0]
[null,null,null,null,null,null,null,null,null,null,null,null,null,null,null,null,null,null,0]
[null,null,null,null,null,null,null,null,null,null,null,null,null,null,null,null,null,null,0]